{"text_format":"1","workbook":"xlsx","n_sheets":6,"sheets":["Guide d'utilisation","Calculateur","Résultats consolidés","_samples","_calculs","_donnees"],"not_rendered":{"charts":1,"images":10,"macros":1,"external_links":1,"defined_names":51,"comments":2,"pivot_tables":0},"unopened":[],"bounds":{"document_bytes":16777216,"sheet_cells":100000,"rows_first":2000,"rows_last":500,"rows_between":2000,"halvings":0,"cell_chars":16384,"cell_head_chars":4096},"cells_cut":0,"cells_raw":0,"read":"whole","date_system":"1900"}

{"sheet":"Guide d'utilisation","index":0,"n_rows":0,"n_cols":0,"rows_kept":0,"cut":false,"hidden":false,"merged":[]}

{"sheet":"Calculateur","index":1,"n_rows":69,"n_cols":7,"rows_kept":69,"cut":false,"hidden":false,"merged":[[41,3,41,4],[42,3,42,4],[40,3,40,6],[33,3,33,4],[30,3,30,4],[31,3,31,4],[32,3,32,6],[38,3,38,4],[34,3,34,4],[35,3,35,4],[36,3,36,6],[37,3,37,4],[39,3,39,4],[27,3,27,4],[29,3,29,4],[15,2,15,6],[16,3,16,4],[17,3,17,4],[18,3,18,4],[28,3,28,6],[19,3,19,4],[20,3,20,4],[21,3,21,4],[22,3,22,4],[1,2,1,6],[3,2,3,6],[4,2,4,6],[6,2,6,6],[26,2,26,6],[7,3,7,4],[8,3,8,4],[9,3,9,4],[10,3,10,4],[11,3,11,4],[13,2,13,6],[24,2,24,6],[43,3,43,4],[44,3,44,6],[45,3,45,4],[46,3,46,4],[47,3,47,4],[48,3,48,6],[49,3,49,4],[50,3,50,4],[51,3,51,4],[52,3,52,6],[53,3,53,4],[54,3,54,4],[55,3,55,4],[56,3,56,6],[57,3,57,4],[58,3,58,4],[59,3,59,4],[60,3,60,6],[61,3,61,4],[62,3,62,4],[68,3,68,6],[29,1,31,1],[33,1,35,1],[37,1,39,1],[41,1,43,1],[45,1,47,1],[49,1,51,1],[53,1,55,1],[57,1,59,1],[61,1,63,1],[65,1,67,1],[63,3,63,4],[64,3,64,6],[65,3,65,4],[66,3,66,4],[67,3,67,4]]}
[]
[null,null,"GES - Approvisionnement - transport (quantitatif)\nCalculateur"]
[]
[null,null,"Instructions"]
[null,null,"Dans un contexte d’approvisionnement de marchandise, cet outil permet de faire une estimation préliminaire des émissions de GES générées lors du transport de la charge (marchandise) et ceci par différents moyens de transport (aérien, maritime, ferroviaire, routier).\n\nDifférents scénarios d'approvisionnement peuvent être comparés: approvisionnement international (hors Québec ou scénario 1) et approvisionnement local (Québec ou scénario 2) afin d'identifier le potentiel de réduction des émissions de GES ainsi que les meilleures pratiques d'approvisionnement écoresponsable (outil qualitatif). \nPour plus de détails voir l’onglet « Guide d’utilisation » \n\nLes émissions liées au trajet à vide pour chaque moyen de transport ne sont pas calculées dans la version actuelle du calculateur. Celles-ci dépendent de l’optimisation des routes de chaque transporteur, de type de transport et de son efficacité, entre autres. Pour calculer les émissions dues au trajet à vide ou au trajet du véhicule pour aller chercher la marchandise, il est recommandé de suivre les lignes directrices de la norme CEN-EN 16258.\n\nLégende : \n* Bleu = Choix de réponse       *Jaune = Valeur à saisir"]
[]
[null,null,"Informations sur l'entreprise et le produit"]
[null,null,"Paramètre","Instructions",null,"Valeur suggérée ","Valeur choisie"]
[null,null,"Nom de l'entreprise","Veuillez inscrire le nom de votre entreprise."]
[null,null,"Code de produit SH","Veuillez inscrire le code SH du produit.",null,"Listes des codes SH"]
[null,null,"Catégorie de produit","Veuillez choisir la catégorie du produit. Choisissez l'option qui s'en approche le plus si celle-ci n'est pas présente."]
[null,null,"Nom du produit","Veuillez inscrire le nom du produit."]
[]
[null,null,"Veuillez remplir les lignes suivantes pour un seul approvisionnement. Vous aurez l'option, une fois le tout rempli, d'ajouter d'autres approvisionnements pour ce produit.     "]
[]
[null,null,"Information sur l'approvisionnement"]
[null,null,"Paramètre","Instructions",null,"Valeur suggérée ","Valeur choisie"]
[null,null,"Nom de l'approvisionnement","Veuillez donner un nom à l'approvisionnement. Celui-ci ne sera utilisé qu'à des fins d'identification si vous souhaitez comparer plusieurs approvisionnements.",null,null,""]
[null,null,"Type d'approvisionnement","Veuillez indiquer s'il s'agit d'un approvisionnement local ou international.\n\nNote : Cette option vous permettra de comparer les résultats des approvisionnements à l'international à ceux de l'approvisionnement local. Cela peut être utile si vous avez différents fournisseurs.",null,null,""]
[null,null,"Quantité annuelle","Veuillez inscrire la quantité annuelle du produit, en kg (rappel : 1 tonne = 1000 kg).",null,null,""]
[null,null,"Charge par livraison","Veuillez inscrire le poids total moyen du fret par livraison, en kg (rappel : 1 tonne = 1000 kg).",null,null,""]
[null,null,"Nombre d'expéditions par année","Veuillez inscrire le nombre d'expéditions du produit par année.",null,{"$f":"IFERROR(ROUNDUP(G20/G21,0),\"\")","v":""},""]
[null,null,"Besoin de réfrigération ou de climatisation?","Veuillez préciser si le produit a besoin de réfrigération ou d'une chambre de climatisation pendant le transport.",null,null,""]
[]
[null,null,"Veuillez détailler les étapes de l'approvisionnement. Cliquez sur « Ajouter un segment » pour ajouter une étape supplémentaire AVANT le point d'arrivée. Cliquez sur « Retirer le dernier segment » pour retirer la dernière étape de l'approvisionnement. Le Point de départ et le Point d'arrivée demeurent inchangés, peu importe les manipulations réalisées pendant les étapes. Vous pouvez avoir jusqu'à 10 étapes."]
[]
[null,null,"Segments de l'approvisionnement"]
[null,null,"Paramètre","Instructions",null,"Valeur suggérée ","Valeur choisie"]
[null,null,"Point de départ",""]
[null,"Segment 1","Mode de transport","Veuillez choisir le mode de transport entre les deux points."]
[null,null,"Distance parcourue","Veuillez inscrire la distance entre les deux points, en km (rappel : 1 km = 0,6 mille).\nNote : Utilisez le lien suggéré dans la colonne « Valeur suggérée » au besoin.",null,{"$f":"IF(ISBLANK(G30),\"\",HYPERLINK(VLOOKUP(G30,tableau_ModesTransport[],3,FALSE),_xlfn.CONCAT(\"Calculateur de distances (\",VLOOKUP(G30,tableau_ModesTransport[],2,FALSE),\")\")))","v":""}]
[null,null,"Retour du véhicule à vide à son point d'origine","Veuillez indiquer si le véhicule, une fois le produit livré, retourne à son point d'origine à vide."]
[null,null,"Point intermédiaire #1",""]
[null,"Segment 2","Mode de transport","Veuillez choisir le mode de transport entre les deux points."]
[null,null,"Distance parcourue","Veuillez inscrire la distance entre les deux points, en km (rappel : 1 km = 0,6 mille).\nNote : Utilisez le lien suggéré dans la colonne « Valeur suggérée » au besoin.",null,{"$f":"IF(ISBLANK(G34),\"\",HYPERLINK(VLOOKUP(G34,tableau_ModesTransport[],3,FALSE),_xlfn.CONCAT(\"Calculateur de distances (\",VLOOKUP(G34,tableau_ModesTransport[],2,FALSE),\")\")))","v":""}]
[null,null,"Retour du véhicule à vide à son point d'origine","Veuillez indiquer si le véhicule, une fois le produit livré, retourne à son point d'origine à vide."]
[null,null,"Point intermédiaire #2",""]
[null,"Segment 3","Mode de transport","Veuillez choisir le mode de transport entre les deux points."]
[null,null,"Distance parcourue","Veuillez inscrire la distance entre les deux points, en km (rappel : 1 km = 0,6 mille).\nNote : Utilisez le lien suggéré dans la colonne « Valeur suggérée » au besoin.",null,{"$f":"IF(ISBLANK(G38),\"\",HYPERLINK(VLOOKUP(G38,tableau_ModesTransport[],3,FALSE),_xlfn.CONCAT(\"Calculateur de distances (\",VLOOKUP(G38,tableau_ModesTransport[],2,FALSE),\")\")))","v":""}]
[null,null,"Retour du véhicule à vide à son point d'origine","Veuillez indiquer si le véhicule, une fois le produit livré, retourne à son point d'origine à vide."]
[null,null,"Point intermédiaire #3",""]
[null,"Segment 4","Mode de transport","Veuillez choisir le mode de transport entre les deux points."]
[null,null,"Distance parcourue","Veuillez inscrire la distance entre les deux points, en km (rappel : 1 km = 0,6 mille).\nNote : Utilisez le lien suggéré dans la colonne « Valeur suggérée » au besoin.",null,{"$f":"IF(ISBLANK(G42),\"\",HYPERLINK(VLOOKUP(G42,tableau_ModesTransport[],3,FALSE),_xlfn.CONCAT(\"Calculateur de distances (\",VLOOKUP(G42,tableau_ModesTransport[],2,FALSE),\")\")))","v":""}]
[null,null,"Retour du véhicule à vide à son point d'origine","Veuillez indiquer si le véhicule, une fois le produit livré, retourne à son point d'origine à vide."]
[null,null,"Point intermédiaire #4",""]
[null,"Segment 5","Mode de transport","Veuillez choisir le mode de transport entre les deux points."]
[null,null,"Distance parcourue","Veuillez inscrire la distance entre les deux points, en km (rappel : 1 km = 0,6 mille).\nNote : Utilisez le lien suggéré dans la colonne « Valeur suggérée » au besoin.",null,{"$f":"IF(ISBLANK(G46),\"\",HYPERLINK(VLOOKUP(G46,tableau_ModesTransport[],3,FALSE),_xlfn.CONCAT(\"Calculateur de distances (\",VLOOKUP(G46,tableau_ModesTransport[],2,FALSE),\")\")))","v":""}]
[null,null,"Retour du véhicule à vide à son point d'origine","Veuillez indiquer si le véhicule, une fois le produit livré, retourne à son point d'origine à vide."]
[null,null,"Point intermédiaire #5",""]
[null,"Segment 6","Mode de transport","Veuillez choisir le mode de transport entre les deux points."]
[null,null,"Distance parcourue","Veuillez inscrire la distance entre les deux points, en km (rappel : 1 km = 0,6 mille).\nNote : Utilisez le lien suggéré dans la colonne « Valeur suggérée » au besoin.",null,{"$f":"IF(ISBLANK(G50),\"\",HYPERLINK(VLOOKUP(G50,tableau_ModesTransport[],3,FALSE),_xlfn.CONCAT(\"Calculateur de distances (\",VLOOKUP(G50,tableau_ModesTransport[],2,FALSE),\")\")))","v":""}]
[null,null,"Retour du véhicule à vide à son point d'origine","Veuillez indiquer si le véhicule, une fois le produit livré, retourne à son point d'origine à vide."]
[null,null,"Point intermédiaire #6",""]
[null,"Segment 7","Mode de transport","Veuillez choisir le mode de transport entre les deux points."]
[null,null,"Distance parcourue","Veuillez inscrire la distance entre les deux points, en km (rappel : 1 km = 0,6 mille).\nNote : Utilisez le lien suggéré dans la colonne « Valeur suggérée » au besoin.",null,{"$f":"IF(ISBLANK(G54),\"\",HYPERLINK(VLOOKUP(G54,tableau_ModesTransport[],3,FALSE),_xlfn.CONCAT(\"Calculateur de distances (\",VLOOKUP(G54,tableau_ModesTransport[],2,FALSE),\")\")))","v":""}]
[null,null,"Retour du véhicule à vide à son point d'origine","Veuillez indiquer si le véhicule, une fois le produit livré, retourne à son point d'origine à vide."]
[null,null,"Point intermédiaire #7",""]
[null,"Segment 8","Mode de transport","Veuillez choisir le mode de transport entre les deux points."]
[null,null,"Distance parcourue","Veuillez inscrire la distance entre les deux points, en km (rappel : 1 km = 0,6 mille).\nNote : Utilisez le lien suggéré dans la colonne « Valeur suggérée » au besoin.",null,{"$f":"IF(ISBLANK(G58),\"\",HYPERLINK(VLOOKUP(G58,tableau_ModesTransport[],3,FALSE),_xlfn.CONCAT(\"Calculateur de distances (\",VLOOKUP(G58,tableau_ModesTransport[],2,FALSE),\")\")))","v":""}]
[null,null,"Retour du véhicule à vide à son point d'origine","Veuillez indiquer si le véhicule, une fois le produit livré, retourne à son point d'origine à vide."]
[null,null,"Point intermédiaire #8",""]
[null,"Segment 9","Mode de transport","Veuillez choisir le mode de transport entre les deux points."]
[null,null,"Distance parcourue","Veuillez inscrire la distance entre les deux points, en km (rappel : 1 km = 0,6 mille).\nNote : Utilisez le lien suggéré dans la colonne « Valeur suggérée » au besoin.",null,{"$f":"IF(ISBLANK(G62),\"\",HYPERLINK(VLOOKUP(G62,tableau_ModesTransport[],3,FALSE),_xlfn.CONCAT(\"Calculateur de distances (\",VLOOKUP(G62,tableau_ModesTransport[],2,FALSE),\")\")))","v":""}]
[null,null,"Retour du véhicule à vide à son point d'origine","Veuillez indiquer si le véhicule, une fois le produit livré, retourne à son point d'origine à vide."]
[null,null,"Point intermédiaire #9",""]
[null,"Segment 10","Mode de transport","Veuillez choisir le mode de transport entre les deux points."]
[null,null,"Distance parcourue","Veuillez inscrire la distance entre les deux points, en km (rappel : 1 km = 0,6 mille).\nNote : Utilisez le lien suggéré dans la colonne « Valeur suggérée » au besoin.",null,{"$f":"IF(ISBLANK(G66),\"\",HYPERLINK(VLOOKUP(G66,tableau_ModesTransport[],3,FALSE),_xlfn.CONCAT(\"Calculateur de distances (\",VLOOKUP(G66,tableau_ModesTransport[],2,FALSE),\")\")))","v":""}]
[null,null,"Retour du véhicule à vide à son point d'origine","Veuillez indiquer si le véhicule, une fois le produit livré, retourne à son point d'origine à vide."]
[null,null,{"$f":"IF(ISBLANK(INDIRECT(ADDRESS(ROW()+1,COLUMN()))),\"Point d'arrivé\",\"Point intermédiaire\")","v":"Point d'arrivé"},""]

{"sheet":"Résultats consolidés","index":2,"n_rows":21,"n_cols":13,"rows_kept":21,"cut":false,"hidden":false,"merged":[[1,2,1,12],[12,2,12,9],[12,10,12,12],[10,5,10,9],[4,5,4,9],[4,2,4,4],[4,10,4,12],[7,2,7,9],[7,10,7,12],[3,2,3,12],[16,10,19,12],[20,10,28,12],[15,2,15,12],[6,2,6,9],[6,10,6,12],[9,2,9,12],[10,2,10,4],[10,10,10,12],[13,2,13,9],[13,10,13,12]]}
[]
[null,null,"GES - Approvisionnement - transport (quantitatif)\nTableaux des résultats consolidés"]
[]
[null,null,"Approvisionnement international"]
[null,null,"Information sur l'approvisionnement",null,null,"Information sur les étapes",null,null,null,null,"Émissions de GES (kg éqCO2)"]
[null,null,"Nom de l'approvisionnement","Quantité annuelle du produit (kg)","Nombre d'expéditions par année","Étape","De","À","Distance (km)","Mode de transport","Pour l'étape, par livraison","Pour l'approvisionnement, par livraison","Pour l'approvisionnement annuel"]
[null,null,"Émissions annuelles totales de GES pour l'approvisionnement international (kg éqCO2)",null,null,null,null,null,null,null,0]
[null,null,"Estimation des émissions annuelles reliées aux retours à vide (kg éqCO2)",null,null,null,null,null,null,null,0]
[]
[null,null,"Approvisionnement local"]
[null,null,"Information sur l'approvisionnement",null,null,"Information sur les étapes",null,null,null,null,"Émissions de GES (kg éqCO2)"]
[null,null,"Nom de l'approvisionnement","Quantité annuelle du produit (kg)","Nombre d'expéditions par année","Étape","De","À","Distance (km)","Mode de transport","Pour l'étape, par livraison","Pour l'approvisionnement, par livraison","Pour l'approvisionnement annuel"]
[null,null,"Émissions annuelles totales de GES pour l'approvisionnement local (kg éqCO2)",null,null,null,null,null,null,null,0]
[null,null,"Estimation des émissions annuelles reliées aux retours à vide (kg éqCO2)",null,null,null,null,null,null,null,0]
[]
[null,null,"Comparaison entre les émissions annuelles totales des deux types d'approvisionnement"]
[null,null,null,null,null,null,null,null,null,null,{"$f":"IF(K21=\"\",\"\",\"L'approvisionnement local entraînerait une \" & IF(resultLoc>resultIntl,\"augmentation\",\"diminution\") & \" approximative des GES de\")","v":""}]
[]
[]
[]
[null,null,null,null,null,null,null,null,null,null,{"$f":"IF(OR(resultIntl=0,resultLoc=0),\"\",IF(resultLoc>resultIntl,resultLoc/resultIntl-1,1-resultLoc/resultIntl))","v":""}]

{"sheet":"_samples","index":3,"n_rows":27,"n_cols":13,"rows_kept":27,"cut":false,"hidden":true,"merged":[[1,2,1,12]]}
[]
[null,null,"Gabarit pour les résultats compilés\nChanger les deux, le code VBA et le format dans Résultats compilés si changements !"]
[]
[null,null,"Nom de l'approvisionnement","Quantité annuelle du produit","Nombre d'expéditions par année","Étape","De","À","Distance (km)","Mode de transport","Pour l'étape, par livraison","Pour l'approvisionnement, par livraison","Pour l'approvisionnement annuel"]
[null,null,"nomAppro","qteAnnuelle","nbExp","Étape","pointA","pointB","dist","mode","emissionsEtape","emissionsApproLivr","emissionsApproAn"]
[null,null,null,null,null,1]
[null,null,null,null,null,2]
[null,null,null,null,null,3]
[null,null,null,null,null,4]
[null,null,null,null,null,5]
[null,null,null,null,null,6]
[null,null,null,null,null,7]
[null,null,null,null,null,8]
[null,null,null,null,null,9]
[null,null,null,null,null,10]
[]
[null,null,"Nom de l'approvisionnement","Quantité annuelle du produit","Nombre d'expéditions par année","Étape","De","À","Distance (km)","Mode de transport","Pour l'étape, par livraison","Pour l'approvisionnement, par livraison","Pour l'approvisionnement annuel"]
[null,null,null,null,null,1]
[null,null,null,null,null,2]
[null,null,null,null,null,3]
[null,null,null,null,null,4]
[null,null,null,null,null,5]
[null,null,null,null,null,6]
[null,null,null,null,null,7]
[null,null,null,null,null,8]
[null,null,null,null,null,9]
[null,null,null,null,null,10]

{"sheet":"_calculs","index":4,"n_rows":68,"n_cols":22,"rows_kept":68,"cut":false,"hidden":true,"merged":[[1,1,1,3],[2,1,2,3],[2,5,2,21],[1,5,1,21]]}
[]
[null,"Variables utilisés calculs et VBA",null,null,null,"Tableaux de données et calculs"]
[null,"Insérez à partir de la fin sans faire \"insérez lignes\". Incrémentez les \"ID\" (ne pas remplacer) et les utiliser dans des \"RECHERCHEV\" pour obtenir les valeurs, si nécessaire",null,null,null,"À mettre à jour si vous mettez quoique ce soit à jour"]
[]
[null,null,null,null,null,null,"lignePlage",6,5,5,6,7,8,4,null,3]
[null,"ID","Variable","Valeur",null,"noProduit","actif","nomProduit","categorieProduit","qteAnnuelle(kg)","charge(tonnes)","nbExpeditionsAn","refrigeration","type","toutRempli","nomAppro"]
[null,1,{"$f":"\"Ligne de la plage etape\" &tableau_Variables[[#This Row],[ID]]","v":"Ligne de la plage etape1"},{"$f":"ROW(INDEX(INDIRECT(\"etape\" & tableau_Variables[[#This Row],[ID]]),1,1))","v":30},null,1,true,{"$f":"INDEX(zone_InfoProduit,H$5,VLOOKUP(26,tableau_Variables[],3,FALSE))","v":0},{"$f":"INDEX(zone_InfoProduit,I5,VLOOKUP(26,tableau_Variables[],3,FALSE))","v":0},{"$f":"INDEX(zone_InfoApprovisionnement,J5,VLOOKUP(27,tableau_Variables[],3,FALSE))","v":""},{"$f":"IFERROR(INDEX(zone_InfoApprovisionnement,K5,VLOOKUP(27,tableau_Variables[],3,FALSE))/1000,0)","v":0},{"$f":"INDEX(zone_InfoApprovisionnement,L5,VLOOKUP(27,tableau_Variables[],3,FALSE))","v":""},{"$f":"INDEX(zone_InfoApprovisionnement,M5,VLOOKUP(27,tableau_Variables[],3,FALSE))","v":""},{"$f":"INDEX(zone_InfoApprovisionnement,N5,VLOOKUP(27,tableau_Variables[],3,FALSE))","v":""},{"$f":"AND(COUNTBLANK(INDEX(zone_InfoProduit,,VLOOKUP(26,tableau_Variables[],3,FALSE)))=1,COUNTBLANK(INDEX(zone_InfoApprovisionnement,,VLOOKUP(27,tableau_Variables[],3,FALSE)))=1)","v":false},{"$f":"INDEX(zone_InfoApprovisionnement,P5,VLOOKUP(27,tableau_Variables[],3,FALSE))","v":""}]
[null,2,{"$f":"\"Ligne de la plage etape\" &tableau_Variables[[#This Row],[ID]]","v":"Ligne de la plage etape2"},{"$f":"ROW(INDEX(INDIRECT(\"etape\" & tableau_Variables[[#This Row],[ID]]),1,1))","v":34}]
[null,3,{"$f":"\"Ligne de la plage etape\" &tableau_Variables[[#This Row],[ID]]","v":"Ligne de la plage etape3"},{"$f":"ROW(INDEX(INDIRECT(\"etape\" & tableau_Variables[[#This Row],[ID]]),1,1))","v":38},null,null,"lignePlage",null,null,-1,-1,2,1,3]
[null,4,{"$f":"\"Ligne de la plage etape\" &tableau_Variables[[#This Row],[ID]]","v":"Ligne de la plage etape4"},{"$f":"ROW(INDEX(INDIRECT(\"etape\" & tableau_Variables[[#This Row],[ID]]),1,1))","v":42},null,"noEtape","actif","ligneDebut","toutRempli","destDepart","destArrivee","distance(km)","modeTransport","retourVehicule","facteurEmission","ajoutDist(km)","emissionsLivr(kgco2eq)","emissionsAn(kgco2eq)","actifRaV","facteurRaV","emissionsLivrRaV(kgco2eq)","emissionsAnRaV(kgco2eq)"]
[null,5,{"$f":"\"Ligne de la plage etape\" &tableau_Variables[[#This Row],[ID]]","v":"Ligne de la plage etape5"},{"$f":"ROW(INDEX(INDIRECT(\"etape\" & tableau_Variables[[#This Row],[ID]]),1,1))","v":46},null,1,{"$f":"tableau_Calculs[[#This Row],[noEtape]]<=VLOOKUP(21,tableau_Variables[],3,FALSE)","v":true},{"$f":"VLOOKUP(tableau_Calculs[[#This Row],[noEtape]],tableau_Variables[],3,FALSE)","v":30},{"$f":"IF(tableau_Calculs[[#This Row],[actif]],COUNTBLANK(INDEX(INDIRECT(\"etape\"&tableau_Calculs[[#This Row],[noEtape]]),,VLOOKUP(tableau_Calculs[[#This Row],[noEtape]]+200,tableau_Variables[],3,FALSE)))=0,\"\")","v":false},{"$f":"IF(tableau_Calculs[[#This Row],[actif]],INDIRECT(ADDRESS(tableau_Calculs[[#This Row],[ligneDebut]]+J$9,VLOOKUP(28,tableau_Variables[],3,FALSE),,,\"Calculateur\")),\"\")","v":""},{"$f":"IF(tableau_Calculs[[#This Row],[actif]],IF(tableau_Calculs[[#This Row],[noEtape]]=VLOOKUP(21,tableau_Variables[],3),INDIRECT(ADDRESS(VLOOKUP(22,tableau_Variables[],3),VLOOKUP(28,tableau_Variables[],3,FALSE),,,\"Calculateur\")),INDIRECT(ADDRESS(VLOOKUP(tableau_Calculs[[#This Row],[noEtape]]+1,tableau_Variables[],3)+K$9,VLOOKUP(28,tableau_Variables[],3,FALSE),,,\"Calculateur\"))),\"\")","v":""},{"$f":"IF(tableau_Calculs[[#This Row],[actif]],INDEX(INDIRECT(\"etape\" & tableau_Calculs[[#This Row],[noEtape]]),L$9,VLOOKUP(tableau_Calculs[[#This Row],[noEtape]]+200,tableau_Variables[],3,FALSE)),\"\")","v":0},{"$f":"IF(tableau_Calculs[[#This Row],[actif]],INDEX(INDIRECT(\"etape\" & tableau_Calculs[[#This Row],[noEtape]]),M$9,VLOOKUP(tableau_Calculs[[#This Row],[noEtape]]+200,tableau_Variables[],3,FALSE)),\"\")","v":0},{"$f":"IF(tableau_Calculs[[#This Row],[actif]],INDEX(INDIRECT(\"etape\" & tableau_Calculs[[#This Row],[noEtape]]),N$9,VLOOKUP(tableau_Calculs[[#This Row],[noEtape]]+200,tableau_Variables[],3,FALSE)),\"\")","v":0},{"$f":"IFERROR(IF(tableau_Calculs[[#This Row],[actif]],_xlfn.XLOOKUP(1,(data_ModesTransport[Mode de transport]=tableau_Calculs[[#This Row],[modeTransport]])*(data_ModesTransport[Distance max (km)]>tableau_Calculs[[#This Row],[distance(km)]]),data_ModesTransport[Émissions]),\"\"),0)","v":0},{"$f":"IFERROR(IF(tableau_Calculs[[#This Row],[actif]],_xlfn.XLOOKUP(1,(data_ModesTransport[Mode de transport]=tableau_Calculs[[#This Row],[modeTransport]])*(data_ModesTransport[Distance max (km)]>tableau_Calculs[[#This Row],[distance(km)]]),data_ModesTransport[Ajout distance (km)]),\"\"),0)","v":0},{"$f":"IF(tableau_Calculs[[#This Row],[actif]],IFERROR(INDEX(tableau_Produits[],1,6)*(tableau_Calculs[[#This Row],[distance(km)]]+tableau_Calculs[[#This Row],[ajoutDist(km)]])*tableau_Calculs[[#This Row],[facteurEmission]],0)/1000,\"\")","v":0},{"$f":"IFERROR(IF(tableau_Calculs[[#This Row],[actif]],INDEX(tableau_Produits[],1,7)*tableau_Calculs[[#This Row],[emissionsLivr(kgco2eq)]],\"\"),0)","v":0},{"$f":"AND(tableau_Calculs[[#This Row],[actif]],LEFT(tableau_Calculs[[#This Row],[retourVehicule]],3)=\"Oui\")","v":false},{"$f":"IFERROR(IF(tableau_Calculs[[#This Row],[actif]],_xlfn.XLOOKUP(1,(data_ModesTransport[Mode de transport]=tableau_Calculs[[#This Row],[modeTransport]])*(data_ModesTransport[Distance max (km)]>tableau_Calculs[[#This Row],[distance(km)]]),data_ModesTransport[Facteur retour à vide]),\"\"),0)","v":0},{"$f":"IF(tableau_Calculs[[#This Row],[actif]],IFERROR((tableau_Calculs[[#This Row],[distance(km)]]+tableau_Calculs[[#This Row],[ajoutDist(km)]])*tableau_Calculs[[#This Row],[facteurRaV]]*tableau_Calculs[[#This Row],[actifRaV]],0),\"\")","v":0},{"$f":"IFERROR(IF(tableau_Calculs[[#This Row],[actif]],INDEX(tableau_Produits[],1,7)*tableau_Calculs[[#This Row],[emissionsLivrRaV(kgco2eq)]],\"\"),0)","v":0}]
[null,6,{"$f":"\"Ligne de la plage etape\" &tableau_Variables[[#This Row],[ID]]","v":"Ligne de la plage etape6"},{"$f":"ROW(INDEX(INDIRECT(\"etape\" & tableau_Variables[[#This Row],[ID]]),1,1))","v":50},null,2,{"$f":"tableau_Calculs[[#This Row],[noEtape]]<=VLOOKUP(21,tableau_Variables[],3,FALSE)","v":false},{"$f":"VLOOKUP(tableau_Calculs[[#This Row],[noEtape]],tableau_Variables[],3,FALSE)","v":34},{"$f":"IF(tableau_Calculs[[#This Row],[actif]],COUNTBLANK(INDEX(INDIRECT(\"etape\"&tableau_Calculs[[#This Row],[noEtape]]),,VLOOKUP(tableau_Calculs[[#This Row],[noEtape]]+200,tableau_Variables[],3,FALSE)))=0,\"\")","v":""},{"$f":"IF(tableau_Calculs[[#This Row],[actif]],INDIRECT(ADDRESS(tableau_Calculs[[#This Row],[ligneDebut]]+J$9,VLOOKUP(28,tableau_Variables[],3,FALSE),,,\"Calculateur\")),\"\")","v":""},{"$f":"IF(tableau_Calculs[[#This Row],[actif]],IF(tableau_Calculs[[#This Row],[noEtape]]=VLOOKUP(21,tableau_Variables[],3),INDIRECT(ADDRESS(VLOOKUP(22,tableau_Variables[],3),VLOOKUP(28,tableau_Variables[],3,FALSE),,,\"Calculateur\")),INDIRECT(ADDRESS(VLOOKUP(tableau_Calculs[[#This Row],[noEtape]]+1,tableau_Variables[],3)+K$9,VLOOKUP(28,tableau_Variables[],3,FALSE),,,\"Calculateur\"))),\"\")","v":""},{"$f":"IF(tableau_Calculs[[#This Row],[actif]],INDEX(INDIRECT(\"etape\" & tableau_Calculs[[#This Row],[noEtape]]),L$9,VLOOKUP(tableau_Calculs[[#This Row],[noEtape]]+200,tableau_Variables[],3,FALSE)),\"\")","v":""},{"$f":"IF(tableau_Calculs[[#This Row],[actif]],INDEX(INDIRECT(\"etape\" & tableau_Calculs[[#This Row],[noEtape]]),M$9,VLOOKUP(tableau_Calculs[[#This Row],[noEtape]]+200,tableau_Variables[],3,FALSE)),\"\")","v":""},{"$f":"IF(tableau_Calculs[[#This Row],[actif]],INDEX(INDIRECT(\"etape\" & tableau_Calculs[[#This Row],[noEtape]]),N$9,VLOOKUP(tableau_Calculs[[#This Row],[noEtape]]+200,tableau_Variables[],3,FALSE)),\"\")","v":""},{"$f":"IFERROR(IF(tableau_Calculs[[#This Row],[actif]],_xlfn.XLOOKUP(1,(data_ModesTransport[Mode de transport]=tableau_Calculs[[#This Row],[modeTransport]])*(data_ModesTransport[Distance max (km)]>tableau_Calculs[[#This Row],[distance(km)]]),data_ModesTransport[Émissions]),\"\"),0)","v":""},{"$f":"IFERROR(IF(tableau_Calculs[[#This Row],[actif]],_xlfn.XLOOKUP(1,(data_ModesTransport[Mode de transport]=tableau_Calculs[[#This Row],[modeTransport]])*(data_ModesTransport[Distance max (km)]>tableau_Calculs[[#This Row],[distance(km)]]),data_ModesTransport[Ajout distance (km)]),\"\"),0)","v":""},{"$f":"IF(tableau_Calculs[[#This Row],[actif]],IFERROR(INDEX(tableau_Produits[],1,6)*(tableau_Calculs[[#This Row],[distance(km)]]+tableau_Calculs[[#This Row],[ajoutDist(km)]])*tableau_Calculs[[#This Row],[facteurEmission]],0)/1000,\"\")","v":""},{"$f":"IFERROR(IF(tableau_Calculs[[#This Row],[actif]],INDEX(tableau_Produits[],1,7)*tableau_Calculs[[#This Row],[emissionsLivr(kgco2eq)]],\"\"),0)","v":""},{"$f":"AND(tableau_Calculs[[#This Row],[actif]],LEFT(tableau_Calculs[[#This Row],[retourVehicule]],3)=\"Oui\")","v":false},{"$f":"IFERROR(IF(tableau_Calculs[[#This Row],[actif]],_xlfn.XLOOKUP(1,(data_ModesTransport[Mode de transport]=tableau_Calculs[[#This Row],[modeTransport]])*(data_ModesTransport[Distance max (km)]>tableau_Calculs[[#This Row],[distance(km)]]),data_ModesTransport[Facteur retour à vide]),\"\"),0)","v":""},{"$f":"IF(tableau_Calculs[[#This Row],[actif]],IFERROR((tableau_Calculs[[#This Row],[distance(km)]]+tableau_Calculs[[#This Row],[ajoutDist(km)]])*tableau_Calculs[[#This Row],[facteurRaV]]*tableau_Calculs[[#This Row],[actifRaV]],0),\"\")","v":""},{"$f":"IFERROR(IF(tableau_Calculs[[#This Row],[actif]],INDEX(tableau_Produits[],1,7)*tableau_Calculs[[#This Row],[emissionsLivrRaV(kgco2eq)]],\"\"),0)","v":""}]
[null,7,{"$f":"\"Ligne de la plage etape\" &tableau_Variables[[#This Row],[ID]]","v":"Ligne de la plage etape7"},{"$f":"ROW(INDEX(INDIRECT(\"etape\" & tableau_Variables[[#This Row],[ID]]),1,1))","v":54},null,3,{"$f":"tableau_Calculs[[#This Row],[noEtape]]<=VLOOKUP(21,tableau_Variables[],3,FALSE)","v":false},{"$f":"VLOOKUP(tableau_Calculs[[#This Row],[noEtape]],tableau_Variables[],3,FALSE)","v":38},{"$f":"IF(tableau_Calculs[[#This Row],[actif]],COUNTBLANK(INDEX(INDIRECT(\"etape\"&tableau_Calculs[[#This Row],[noEtape]]),,VLOOKUP(tableau_Calculs[[#This Row],[noEtape]]+200,tableau_Variables[],3,FALSE)))=0,\"\")","v":""},{"$f":"IF(tableau_Calculs[[#This Row],[actif]],INDIRECT(ADDRESS(tableau_Calculs[[#This Row],[ligneDebut]]+J$9,VLOOKUP(28,tableau_Variables[],3,FALSE),,,\"Calculateur\")),\"\")","v":""},{"$f":"IF(tableau_Calculs[[#This Row],[actif]],IF(tableau_Calculs[[#This Row],[noEtape]]=VLOOKUP(21,tableau_Variables[],3),INDIRECT(ADDRESS(VLOOKUP(22,tableau_Variables[],3),VLOOKUP(28,tableau_Variables[],3,FALSE),,,\"Calculateur\")),INDIRECT(ADDRESS(VLOOKUP(tableau_Calculs[[#This Row],[noEtape]]+1,tableau_Variables[],3)+K$9,VLOOKUP(28,tableau_Variables[],3,FALSE),,,\"Calculateur\"))),\"\")","v":""},{"$f":"IF(tableau_Calculs[[#This Row],[actif]],INDEX(INDIRECT(\"etape\" & tableau_Calculs[[#This Row],[noEtape]]),L$9,VLOOKUP(tableau_Calculs[[#This Row],[noEtape]]+200,tableau_Variables[],3,FALSE)),\"\")","v":""},{"$f":"IF(tableau_Calculs[[#This Row],[actif]],INDEX(INDIRECT(\"etape\" & tableau_Calculs[[#This Row],[noEtape]]),M$9,VLOOKUP(tableau_Calculs[[#This Row],[noEtape]]+200,tableau_Variables[],3,FALSE)),\"\")","v":""},{"$f":"IF(tableau_Calculs[[#This Row],[actif]],INDEX(INDIRECT(\"etape\" & tableau_Calculs[[#This Row],[noEtape]]),N$9,VLOOKUP(tableau_Calculs[[#This Row],[noEtape]]+200,tableau_Variables[],3,FALSE)),\"\")","v":""},{"$f":"IFERROR(IF(tableau_Calculs[[#This Row],[actif]],_xlfn.XLOOKUP(1,(data_ModesTransport[Mode de transport]=tableau_Calculs[[#This Row],[modeTransport]])*(data_ModesTransport[Distance max (km)]>tableau_Calculs[[#This Row],[distance(km)]]),data_ModesTransport[Émissions]),\"\"),0)","v":""},{"$f":"IFERROR(IF(tableau_Calculs[[#This Row],[actif]],_xlfn.XLOOKUP(1,(data_ModesTransport[Mode de transport]=tableau_Calculs[[#This Row],[modeTransport]])*(data_ModesTransport[Distance max (km)]>tableau_Calculs[[#This Row],[distance(km)]]),data_ModesTransport[Ajout distance (km)]),\"\"),0)","v":""},{"$f":"IF(tableau_Calculs[[#This Row],[actif]],IFERROR(INDEX(tableau_Produits[],1,6)*(tableau_Calculs[[#This Row],[distance(km)]]+tableau_Calculs[[#This Row],[ajoutDist(km)]])*tableau_Calculs[[#This Row],[facteurEmission]],0)/1000,\"\")","v":""},{"$f":"IFERROR(IF(tableau_Calculs[[#This Row],[actif]],INDEX(tableau_Produits[],1,7)*tableau_Calculs[[#This Row],[emissionsLivr(kgco2eq)]],\"\"),0)","v":""},{"$f":"AND(tableau_Calculs[[#This Row],[actif]],LEFT(tableau_Calculs[[#This Row],[retourVehicule]],3)=\"Oui\")","v":false},{"$f":"IFERROR(IF(tableau_Calculs[[#This Row],[actif]],_xlfn.XLOOKUP(1,(data_ModesTransport[Mode de transport]=tableau_Calculs[[#This Row],[modeTransport]])*(data_ModesTransport[Distance max (km)]>tableau_Calculs[[#This Row],[distance(km)]]),data_ModesTransport[Facteur retour à vide]),\"\"),0)","v":""},{"$f":"IF(tableau_Calculs[[#This Row],[actif]],IFERROR((tableau_Calculs[[#This Row],[distance(km)]]+tableau_Calculs[[#This Row],[ajoutDist(km)]])*tableau_Calculs[[#This Row],[facteurRaV]]*tableau_Calculs[[#This Row],[actifRaV]],0),\"\")","v":""},{"$f":"IFERROR(IF(tableau_Calculs[[#This Row],[actif]],INDEX(tableau_Produits[],1,7)*tableau_Calculs[[#This Row],[emissionsLivrRaV(kgco2eq)]],\"\"),0)","v":""}]
[null,8,{"$f":"\"Ligne de la plage etape\" &tableau_Variables[[#This Row],[ID]]","v":"Ligne de la plage etape8"},{"$f":"ROW(INDEX(INDIRECT(\"etape\" & tableau_Variables[[#This Row],[ID]]),1,1))","v":58},null,4,{"$f":"tableau_Calculs[[#This Row],[noEtape]]<=VLOOKUP(21,tableau_Variables[],3,FALSE)","v":false},{"$f":"VLOOKUP(tableau_Calculs[[#This Row],[noEtape]],tableau_Variables[],3,FALSE)","v":42},{"$f":"IF(tableau_Calculs[[#This Row],[actif]],COUNTBLANK(INDEX(INDIRECT(\"etape\"&tableau_Calculs[[#This Row],[noEtape]]),,VLOOKUP(tableau_Calculs[[#This Row],[noEtape]]+200,tableau_Variables[],3,FALSE)))=0,\"\")","v":""},{"$f":"IF(tableau_Calculs[[#This Row],[actif]],INDIRECT(ADDRESS(tableau_Calculs[[#This Row],[ligneDebut]]+J$9,VLOOKUP(28,tableau_Variables[],3,FALSE),,,\"Calculateur\")),\"\")","v":""},{"$f":"IF(tableau_Calculs[[#This Row],[actif]],IF(tableau_Calculs[[#This Row],[noEtape]]=VLOOKUP(21,tableau_Variables[],3),INDIRECT(ADDRESS(VLOOKUP(22,tableau_Variables[],3),VLOOKUP(28,tableau_Variables[],3,FALSE),,,\"Calculateur\")),INDIRECT(ADDRESS(VLOOKUP(tableau_Calculs[[#This Row],[noEtape]]+1,tableau_Variables[],3)+K$9,VLOOKUP(28,tableau_Variables[],3,FALSE),,,\"Calculateur\"))),\"\")","v":""},{"$f":"IF(tableau_Calculs[[#This Row],[actif]],INDEX(INDIRECT(\"etape\" & tableau_Calculs[[#This Row],[noEtape]]),L$9,VLOOKUP(tableau_Calculs[[#This Row],[noEtape]]+200,tableau_Variables[],3,FALSE)),\"\")","v":""},{"$f":"IF(tableau_Calculs[[#This Row],[actif]],INDEX(INDIRECT(\"etape\" & tableau_Calculs[[#This Row],[noEtape]]),M$9,VLOOKUP(tableau_Calculs[[#This Row],[noEtape]]+200,tableau_Variables[],3,FALSE)),\"\")","v":""},{"$f":"IF(tableau_Calculs[[#This Row],[actif]],INDEX(INDIRECT(\"etape\" & tableau_Calculs[[#This Row],[noEtape]]),N$9,VLOOKUP(tableau_Calculs[[#This Row],[noEtape]]+200,tableau_Variables[],3,FALSE)),\"\")","v":""},{"$f":"IFERROR(IF(tableau_Calculs[[#This Row],[actif]],_xlfn.XLOOKUP(1,(data_ModesTransport[Mode de transport]=tableau_Calculs[[#This Row],[modeTransport]])*(data_ModesTransport[Distance max (km)]>tableau_Calculs[[#This Row],[distance(km)]]),data_ModesTransport[Émissions]),\"\"),0)","v":""},{"$f":"IFERROR(IF(tableau_Calculs[[#This Row],[actif]],_xlfn.XLOOKUP(1,(data_ModesTransport[Mode de transport]=tableau_Calculs[[#This Row],[modeTransport]])*(data_ModesTransport[Distance max (km)]>tableau_Calculs[[#This Row],[distance(km)]]),data_ModesTransport[Ajout distance (km)]),\"\"),0)","v":""},{"$f":"IF(tableau_Calculs[[#This Row],[actif]],IFERROR(INDEX(tableau_Produits[],1,6)*(tableau_Calculs[[#This Row],[distance(km)]]+tableau_Calculs[[#This Row],[ajoutDist(km)]])*tableau_Calculs[[#This Row],[facteurEmission]],0)/1000,\"\")","v":""},{"$f":"IFERROR(IF(tableau_Calculs[[#This Row],[actif]],INDEX(tableau_Produits[],1,7)*tableau_Calculs[[#This Row],[emissionsLivr(kgco2eq)]],\"\"),0)","v":""},{"$f":"AND(tableau_Calculs[[#This Row],[actif]],LEFT(tableau_Calculs[[#This Row],[retourVehicule]],3)=\"Oui\")","v":false},{"$f":"IFERROR(IF(tableau_Calculs[[#This Row],[actif]],_xlfn.XLOOKUP(1,(data_ModesTransport[Mode de transport]=tableau_Calculs[[#This Row],[modeTransport]])*(data_ModesTransport[Distance max (km)]>tableau_Calculs[[#This Row],[distance(km)]]),data_ModesTransport[Facteur retour à vide]),\"\"),0)","v":""},{"$f":"IF(tableau_Calculs[[#This Row],[actif]],IFERROR((tableau_Calculs[[#This Row],[distance(km)]]+tableau_Calculs[[#This Row],[ajoutDist(km)]])*tableau_Calculs[[#This Row],[facteurRaV]]*tableau_Calculs[[#This Row],[actifRaV]],0),\"\")","v":""},{"$f":"IFERROR(IF(tableau_Calculs[[#This Row],[actif]],INDEX(tableau_Produits[],1,7)*tableau_Calculs[[#This Row],[emissionsLivrRaV(kgco2eq)]],\"\"),0)","v":""}]
[null,9,{"$f":"\"Ligne de la plage etape\" &tableau_Variables[[#This Row],[ID]]","v":"Ligne de la plage etape9"},{"$f":"ROW(INDEX(INDIRECT(\"etape\" & tableau_Variables[[#This Row],[ID]]),1,1))","v":62},null,5,{"$f":"tableau_Calculs[[#This Row],[noEtape]]<=VLOOKUP(21,tableau_Variables[],3,FALSE)","v":false},{"$f":"VLOOKUP(tableau_Calculs[[#This Row],[noEtape]],tableau_Variables[],3,FALSE)","v":46},{"$f":"IF(tableau_Calculs[[#This Row],[actif]],COUNTBLANK(INDEX(INDIRECT(\"etape\"&tableau_Calculs[[#This Row],[noEtape]]),,VLOOKUP(tableau_Calculs[[#This Row],[noEtape]]+200,tableau_Variables[],3,FALSE)))=0,\"\")","v":""},{"$f":"IF(tableau_Calculs[[#This Row],[actif]],INDIRECT(ADDRESS(tableau_Calculs[[#This Row],[ligneDebut]]+J$9,VLOOKUP(28,tableau_Variables[],3,FALSE),,,\"Calculateur\")),\"\")","v":""},{"$f":"IF(tableau_Calculs[[#This Row],[actif]],IF(tableau_Calculs[[#This Row],[noEtape]]=VLOOKUP(21,tableau_Variables[],3),INDIRECT(ADDRESS(VLOOKUP(22,tableau_Variables[],3),VLOOKUP(28,tableau_Variables[],3,FALSE),,,\"Calculateur\")),INDIRECT(ADDRESS(VLOOKUP(tableau_Calculs[[#This Row],[noEtape]]+1,tableau_Variables[],3)+K$9,VLOOKUP(28,tableau_Variables[],3,FALSE),,,\"Calculateur\"))),\"\")","v":""},{"$f":"IF(tableau_Calculs[[#This Row],[actif]],INDEX(INDIRECT(\"etape\" & tableau_Calculs[[#This Row],[noEtape]]),L$9,VLOOKUP(tableau_Calculs[[#This Row],[noEtape]]+200,tableau_Variables[],3,FALSE)),\"\")","v":""},{"$f":"IF(tableau_Calculs[[#This Row],[actif]],INDEX(INDIRECT(\"etape\" & tableau_Calculs[[#This Row],[noEtape]]),M$9,VLOOKUP(tableau_Calculs[[#This Row],[noEtape]]+200,tableau_Variables[],3,FALSE)),\"\")","v":""},{"$f":"IF(tableau_Calculs[[#This Row],[actif]],INDEX(INDIRECT(\"etape\" & tableau_Calculs[[#This Row],[noEtape]]),N$9,VLOOKUP(tableau_Calculs[[#This Row],[noEtape]]+200,tableau_Variables[],3,FALSE)),\"\")","v":""},{"$f":"IFERROR(IF(tableau_Calculs[[#This Row],[actif]],_xlfn.XLOOKUP(1,(data_ModesTransport[Mode de transport]=tableau_Calculs[[#This Row],[modeTransport]])*(data_ModesTransport[Distance max (km)]>tableau_Calculs[[#This Row],[distance(km)]]),data_ModesTransport[Émissions]),\"\"),0)","v":""},{"$f":"IFERROR(IF(tableau_Calculs[[#This Row],[actif]],_xlfn.XLOOKUP(1,(data_ModesTransport[Mode de transport]=tableau_Calculs[[#This Row],[modeTransport]])*(data_ModesTransport[Distance max (km)]>tableau_Calculs[[#This Row],[distance(km)]]),data_ModesTransport[Ajout distance (km)]),\"\"),0)","v":""},{"$f":"IF(tableau_Calculs[[#This Row],[actif]],IFERROR(INDEX(tableau_Produits[],1,6)*(tableau_Calculs[[#This Row],[distance(km)]]+tableau_Calculs[[#This Row],[ajoutDist(km)]])*tableau_Calculs[[#This Row],[facteurEmission]],0)/1000,\"\")","v":""},{"$f":"IFERROR(IF(tableau_Calculs[[#This Row],[actif]],INDEX(tableau_Produits[],1,7)*tableau_Calculs[[#This Row],[emissionsLivr(kgco2eq)]],\"\"),0)","v":""},{"$f":"AND(tableau_Calculs[[#This Row],[actif]],LEFT(tableau_Calculs[[#This Row],[retourVehicule]],3)=\"Oui\")","v":false},{"$f":"IFERROR(IF(tableau_Calculs[[#This Row],[actif]],_xlfn.XLOOKUP(1,(data_ModesTransport[Mode de transport]=tableau_Calculs[[#This Row],[modeTransport]])*(data_ModesTransport[Distance max (km)]>tableau_Calculs[[#This Row],[distance(km)]]),data_ModesTransport[Facteur retour à vide]),\"\"),0)","v":""},{"$f":"IF(tableau_Calculs[[#This Row],[actif]],IFERROR((tableau_Calculs[[#This Row],[distance(km)]]+tableau_Calculs[[#This Row],[ajoutDist(km)]])*tableau_Calculs[[#This Row],[facteurRaV]]*tableau_Calculs[[#This Row],[actifRaV]],0),\"\")","v":""},{"$f":"IFERROR(IF(tableau_Calculs[[#This Row],[actif]],INDEX(tableau_Produits[],1,7)*tableau_Calculs[[#This Row],[emissionsLivrRaV(kgco2eq)]],\"\"),0)","v":""}]
[null,10,{"$f":"\"Ligne de la plage etape\" &tableau_Variables[[#This Row],[ID]]","v":"Ligne de la plage etape10"},{"$f":"ROW(INDEX(INDIRECT(\"etape\" & tableau_Variables[[#This Row],[ID]]),1,1))","v":66},null,6,{"$f":"tableau_Calculs[[#This Row],[noEtape]]<=VLOOKUP(21,tableau_Variables[],3,FALSE)","v":false},{"$f":"VLOOKUP(tableau_Calculs[[#This Row],[noEtape]],tableau_Variables[],3,FALSE)","v":50},{"$f":"IF(tableau_Calculs[[#This Row],[actif]],COUNTBLANK(INDEX(INDIRECT(\"etape\"&tableau_Calculs[[#This Row],[noEtape]]),,VLOOKUP(tableau_Calculs[[#This Row],[noEtape]]+200,tableau_Variables[],3,FALSE)))=0,\"\")","v":""},{"$f":"IF(tableau_Calculs[[#This Row],[actif]],INDIRECT(ADDRESS(tableau_Calculs[[#This Row],[ligneDebut]]+J$9,VLOOKUP(28,tableau_Variables[],3,FALSE),,,\"Calculateur\")),\"\")","v":""},{"$f":"IF(tableau_Calculs[[#This Row],[actif]],IF(tableau_Calculs[[#This Row],[noEtape]]=VLOOKUP(21,tableau_Variables[],3),INDIRECT(ADDRESS(VLOOKUP(22,tableau_Variables[],3),VLOOKUP(28,tableau_Variables[],3,FALSE),,,\"Calculateur\")),INDIRECT(ADDRESS(VLOOKUP(tableau_Calculs[[#This Row],[noEtape]]+1,tableau_Variables[],3)+K$9,VLOOKUP(28,tableau_Variables[],3,FALSE),,,\"Calculateur\"))),\"\")","v":""},{"$f":"IF(tableau_Calculs[[#This Row],[actif]],INDEX(INDIRECT(\"etape\" & tableau_Calculs[[#This Row],[noEtape]]),L$9,VLOOKUP(tableau_Calculs[[#This Row],[noEtape]]+200,tableau_Variables[],3,FALSE)),\"\")","v":""},{"$f":"IF(tableau_Calculs[[#This Row],[actif]],INDEX(INDIRECT(\"etape\" & tableau_Calculs[[#This Row],[noEtape]]),M$9,VLOOKUP(tableau_Calculs[[#This Row],[noEtape]]+200,tableau_Variables[],3,FALSE)),\"\")","v":""},{"$f":"IF(tableau_Calculs[[#This Row],[actif]],INDEX(INDIRECT(\"etape\" & tableau_Calculs[[#This Row],[noEtape]]),N$9,VLOOKUP(tableau_Calculs[[#This Row],[noEtape]]+200,tableau_Variables[],3,FALSE)),\"\")","v":""},{"$f":"IFERROR(IF(tableau_Calculs[[#This Row],[actif]],_xlfn.XLOOKUP(1,(data_ModesTransport[Mode de transport]=tableau_Calculs[[#This Row],[modeTransport]])*(data_ModesTransport[Distance max (km)]>tableau_Calculs[[#This Row],[distance(km)]]),data_ModesTransport[Émissions]),\"\"),0)","v":""},{"$f":"IFERROR(IF(tableau_Calculs[[#This Row],[actif]],_xlfn.XLOOKUP(1,(data_ModesTransport[Mode de transport]=tableau_Calculs[[#This Row],[modeTransport]])*(data_ModesTransport[Distance max (km)]>tableau_Calculs[[#This Row],[distance(km)]]),data_ModesTransport[Ajout distance (km)]),\"\"),0)","v":""},{"$f":"IF(tableau_Calculs[[#This Row],[actif]],IFERROR(INDEX(tableau_Produits[],1,6)*(tableau_Calculs[[#This Row],[distance(km)]]+tableau_Calculs[[#This Row],[ajoutDist(km)]])*tableau_Calculs[[#This Row],[facteurEmission]],0)/1000,\"\")","v":""},{"$f":"IFERROR(IF(tableau_Calculs[[#This Row],[actif]],INDEX(tableau_Produits[],1,7)*tableau_Calculs[[#This Row],[emissionsLivr(kgco2eq)]],\"\"),0)","v":""},{"$f":"AND(tableau_Calculs[[#This Row],[actif]],LEFT(tableau_Calculs[[#This Row],[retourVehicule]],3)=\"Oui\")","v":false},{"$f":"IFERROR(IF(tableau_Calculs[[#This Row],[actif]],_xlfn.XLOOKUP(1,(data_ModesTransport[Mode de transport]=tableau_Calculs[[#This Row],[modeTransport]])*(data_ModesTransport[Distance max (km)]>tableau_Calculs[[#This Row],[distance(km)]]),data_ModesTransport[Facteur retour à vide]),\"\"),0)","v":""},{"$f":"IF(tableau_Calculs[[#This Row],[actif]],IFERROR((tableau_Calculs[[#This Row],[distance(km)]]+tableau_Calculs[[#This Row],[ajoutDist(km)]])*tableau_Calculs[[#This Row],[facteurRaV]]*tableau_Calculs[[#This Row],[actifRaV]],0),\"\")","v":""},{"$f":"IFERROR(IF(tableau_Calculs[[#This Row],[actif]],INDEX(tableau_Produits[],1,7)*tableau_Calculs[[#This Row],[emissionsLivrRaV(kgco2eq)]],\"\"),0)","v":""}]
[null,21,"nbEtapes",1,null,7,{"$f":"tableau_Calculs[[#This Row],[noEtape]]<=VLOOKUP(21,tableau_Variables[],3,FALSE)","v":false},{"$f":"VLOOKUP(tableau_Calculs[[#This Row],[noEtape]],tableau_Variables[],3,FALSE)","v":54},{"$f":"IF(tableau_Calculs[[#This Row],[actif]],COUNTBLANK(INDEX(INDIRECT(\"etape\"&tableau_Calculs[[#This Row],[noEtape]]),,VLOOKUP(tableau_Calculs[[#This Row],[noEtape]]+200,tableau_Variables[],3,FALSE)))=0,\"\")","v":""},{"$f":"IF(tableau_Calculs[[#This Row],[actif]],INDIRECT(ADDRESS(tableau_Calculs[[#This Row],[ligneDebut]]+J$9,VLOOKUP(28,tableau_Variables[],3,FALSE),,,\"Calculateur\")),\"\")","v":""},{"$f":"IF(tableau_Calculs[[#This Row],[actif]],IF(tableau_Calculs[[#This Row],[noEtape]]=VLOOKUP(21,tableau_Variables[],3),INDIRECT(ADDRESS(VLOOKUP(22,tableau_Variables[],3),VLOOKUP(28,tableau_Variables[],3,FALSE),,,\"Calculateur\")),INDIRECT(ADDRESS(VLOOKUP(tableau_Calculs[[#This Row],[noEtape]]+1,tableau_Variables[],3)+K$9,VLOOKUP(28,tableau_Variables[],3,FALSE),,,\"Calculateur\"))),\"\")","v":""},{"$f":"IF(tableau_Calculs[[#This Row],[actif]],INDEX(INDIRECT(\"etape\" & tableau_Calculs[[#This Row],[noEtape]]),L$9,VLOOKUP(tableau_Calculs[[#This Row],[noEtape]]+200,tableau_Variables[],3,FALSE)),\"\")","v":""},{"$f":"IF(tableau_Calculs[[#This Row],[actif]],INDEX(INDIRECT(\"etape\" & tableau_Calculs[[#This Row],[noEtape]]),M$9,VLOOKUP(tableau_Calculs[[#This Row],[noEtape]]+200,tableau_Variables[],3,FALSE)),\"\")","v":""},{"$f":"IF(tableau_Calculs[[#This Row],[actif]],INDEX(INDIRECT(\"etape\" & tableau_Calculs[[#This Row],[noEtape]]),N$9,VLOOKUP(tableau_Calculs[[#This Row],[noEtape]]+200,tableau_Variables[],3,FALSE)),\"\")","v":""},{"$f":"IFERROR(IF(tableau_Calculs[[#This Row],[actif]],_xlfn.XLOOKUP(1,(data_ModesTransport[Mode de transport]=tableau_Calculs[[#This Row],[modeTransport]])*(data_ModesTransport[Distance max (km)]>tableau_Calculs[[#This Row],[distance(km)]]),data_ModesTransport[Émissions]),\"\"),0)","v":""},{"$f":"IFERROR(IF(tableau_Calculs[[#This Row],[actif]],_xlfn.XLOOKUP(1,(data_ModesTransport[Mode de transport]=tableau_Calculs[[#This Row],[modeTransport]])*(data_ModesTransport[Distance max (km)]>tableau_Calculs[[#This Row],[distance(km)]]),data_ModesTransport[Ajout distance (km)]),\"\"),0)","v":""},{"$f":"IF(tableau_Calculs[[#This Row],[actif]],IFERROR(INDEX(tableau_Produits[],1,6)*(tableau_Calculs[[#This Row],[distance(km)]]+tableau_Calculs[[#This Row],[ajoutDist(km)]])*tableau_Calculs[[#This Row],[facteurEmission]],0)/1000,\"\")","v":""},{"$f":"IFERROR(IF(tableau_Calculs[[#This Row],[actif]],INDEX(tableau_Produits[],1,7)*tableau_Calculs[[#This Row],[emissionsLivr(kgco2eq)]],\"\"),0)","v":""},{"$f":"AND(tableau_Calculs[[#This Row],[actif]],LEFT(tableau_Calculs[[#This Row],[retourVehicule]],3)=\"Oui\")","v":false},{"$f":"IFERROR(IF(tableau_Calculs[[#This Row],[actif]],_xlfn.XLOOKUP(1,(data_ModesTransport[Mode de transport]=tableau_Calculs[[#This Row],[modeTransport]])*(data_ModesTransport[Distance max (km)]>tableau_Calculs[[#This Row],[distance(km)]]),data_ModesTransport[Facteur retour à vide]),\"\"),0)","v":""},{"$f":"IF(tableau_Calculs[[#This Row],[actif]],IFERROR((tableau_Calculs[[#This Row],[distance(km)]]+tableau_Calculs[[#This Row],[ajoutDist(km)]])*tableau_Calculs[[#This Row],[facteurRaV]]*tableau_Calculs[[#This Row],[actifRaV]],0),\"\")","v":""},{"$f":"IFERROR(IF(tableau_Calculs[[#This Row],[actif]],INDEX(tableau_Produits[],1,7)*tableau_Calculs[[#This Row],[emissionsLivrRaV(kgco2eq)]],\"\"),0)","v":""}]
[null,22,"ligneArrivee",{"$f":"VLOOKUP(10,tableau_Variables[],3)+VLOOKUP(110,tableau_Variables[],3)","v":69},null,8,{"$f":"tableau_Calculs[[#This Row],[noEtape]]<=VLOOKUP(21,tableau_Variables[],3,FALSE)","v":false},{"$f":"VLOOKUP(tableau_Calculs[[#This Row],[noEtape]],tableau_Variables[],3,FALSE)","v":58},{"$f":"IF(tableau_Calculs[[#This Row],[actif]],COUNTBLANK(INDEX(INDIRECT(\"etape\"&tableau_Calculs[[#This Row],[noEtape]]),,VLOOKUP(tableau_Calculs[[#This Row],[noEtape]]+200,tableau_Variables[],3,FALSE)))=0,\"\")","v":""},{"$f":"IF(tableau_Calculs[[#This Row],[actif]],INDIRECT(ADDRESS(tableau_Calculs[[#This Row],[ligneDebut]]+J$9,VLOOKUP(28,tableau_Variables[],3,FALSE),,,\"Calculateur\")),\"\")","v":""},{"$f":"IF(tableau_Calculs[[#This Row],[actif]],IF(tableau_Calculs[[#This Row],[noEtape]]=VLOOKUP(21,tableau_Variables[],3),INDIRECT(ADDRESS(VLOOKUP(22,tableau_Variables[],3),VLOOKUP(28,tableau_Variables[],3,FALSE),,,\"Calculateur\")),INDIRECT(ADDRESS(VLOOKUP(tableau_Calculs[[#This Row],[noEtape]]+1,tableau_Variables[],3)+K$9,VLOOKUP(28,tableau_Variables[],3,FALSE),,,\"Calculateur\"))),\"\")","v":""},{"$f":"IF(tableau_Calculs[[#This Row],[actif]],INDEX(INDIRECT(\"etape\" & tableau_Calculs[[#This Row],[noEtape]]),L$9,VLOOKUP(tableau_Calculs[[#This Row],[noEtape]]+200,tableau_Variables[],3,FALSE)),\"\")","v":""},{"$f":"IF(tableau_Calculs[[#This Row],[actif]],INDEX(INDIRECT(\"etape\" & tableau_Calculs[[#This Row],[noEtape]]),M$9,VLOOKUP(tableau_Calculs[[#This Row],[noEtape]]+200,tableau_Variables[],3,FALSE)),\"\")","v":""},{"$f":"IF(tableau_Calculs[[#This Row],[actif]],INDEX(INDIRECT(\"etape\" & tableau_Calculs[[#This Row],[noEtape]]),N$9,VLOOKUP(tableau_Calculs[[#This Row],[noEtape]]+200,tableau_Variables[],3,FALSE)),\"\")","v":""},{"$f":"IFERROR(IF(tableau_Calculs[[#This Row],[actif]],_xlfn.XLOOKUP(1,(data_ModesTransport[Mode de transport]=tableau_Calculs[[#This Row],[modeTransport]])*(data_ModesTransport[Distance max (km)]>tableau_Calculs[[#This Row],[distance(km)]]),data_ModesTransport[Émissions]),\"\"),0)","v":""},{"$f":"IFERROR(IF(tableau_Calculs[[#This Row],[actif]],_xlfn.XLOOKUP(1,(data_ModesTransport[Mode de transport]=tableau_Calculs[[#This Row],[modeTransport]])*(data_ModesTransport[Distance max (km)]>tableau_Calculs[[#This Row],[distance(km)]]),data_ModesTransport[Ajout distance (km)]),\"\"),0)","v":""},{"$f":"IF(tableau_Calculs[[#This Row],[actif]],IFERROR(INDEX(tableau_Produits[],1,6)*(tableau_Calculs[[#This Row],[distance(km)]]+tableau_Calculs[[#This Row],[ajoutDist(km)]])*tableau_Calculs[[#This Row],[facteurEmission]],0)/1000,\"\")","v":""},{"$f":"IFERROR(IF(tableau_Calculs[[#This Row],[actif]],INDEX(tableau_Produits[],1,7)*tableau_Calculs[[#This Row],[emissionsLivr(kgco2eq)]],\"\"),0)","v":""},{"$f":"AND(tableau_Calculs[[#This Row],[actif]],LEFT(tableau_Calculs[[#This Row],[retourVehicule]],3)=\"Oui\")","v":false},{"$f":"IFERROR(IF(tableau_Calculs[[#This Row],[actif]],_xlfn.XLOOKUP(1,(data_ModesTransport[Mode de transport]=tableau_Calculs[[#This Row],[modeTransport]])*(data_ModesTransport[Distance max (km)]>tableau_Calculs[[#This Row],[distance(km)]]),data_ModesTransport[Facteur retour à vide]),\"\"),0)","v":""},{"$f":"IF(tableau_Calculs[[#This Row],[actif]],IFERROR((tableau_Calculs[[#This Row],[distance(km)]]+tableau_Calculs[[#This Row],[ajoutDist(km)]])*tableau_Calculs[[#This Row],[facteurRaV]]*tableau_Calculs[[#This Row],[actifRaV]],0),\"\")","v":""},{"$f":"IFERROR(IF(tableau_Calculs[[#This Row],[actif]],INDEX(tableau_Produits[],1,7)*tableau_Calculs[[#This Row],[emissionsLivrRaV(kgco2eq)]],\"\"),0)","v":""}]
[null,23,"Ligne info entreprise/produit",{"$f":"ROW(INDEX(zone_InfoProduit,1,1))","v":7},null,9,{"$f":"tableau_Calculs[[#This Row],[noEtape]]<=VLOOKUP(21,tableau_Variables[],3,FALSE)","v":false},{"$f":"VLOOKUP(tableau_Calculs[[#This Row],[noEtape]],tableau_Variables[],3,FALSE)","v":62},{"$f":"IF(tableau_Calculs[[#This Row],[actif]],COUNTBLANK(INDEX(INDIRECT(\"etape\"&tableau_Calculs[[#This Row],[noEtape]]),,VLOOKUP(tableau_Calculs[[#This Row],[noEtape]]+200,tableau_Variables[],3,FALSE)))=0,\"\")","v":""},{"$f":"IF(tableau_Calculs[[#This Row],[actif]],INDIRECT(ADDRESS(tableau_Calculs[[#This Row],[ligneDebut]]+J$9,VLOOKUP(28,tableau_Variables[],3,FALSE),,,\"Calculateur\")),\"\")","v":""},{"$f":"IF(tableau_Calculs[[#This Row],[actif]],IF(tableau_Calculs[[#This Row],[noEtape]]=VLOOKUP(21,tableau_Variables[],3),INDIRECT(ADDRESS(VLOOKUP(22,tableau_Variables[],3),VLOOKUP(28,tableau_Variables[],3,FALSE),,,\"Calculateur\")),INDIRECT(ADDRESS(VLOOKUP(tableau_Calculs[[#This Row],[noEtape]]+1,tableau_Variables[],3)+K$9,VLOOKUP(28,tableau_Variables[],3,FALSE),,,\"Calculateur\"))),\"\")","v":""},{"$f":"IF(tableau_Calculs[[#This Row],[actif]],INDEX(INDIRECT(\"etape\" & tableau_Calculs[[#This Row],[noEtape]]),L$9,VLOOKUP(tableau_Calculs[[#This Row],[noEtape]]+200,tableau_Variables[],3,FALSE)),\"\")","v":""},{"$f":"IF(tableau_Calculs[[#This Row],[actif]],INDEX(INDIRECT(\"etape\" & tableau_Calculs[[#This Row],[noEtape]]),M$9,VLOOKUP(tableau_Calculs[[#This Row],[noEtape]]+200,tableau_Variables[],3,FALSE)),\"\")","v":""},{"$f":"IF(tableau_Calculs[[#This Row],[actif]],INDEX(INDIRECT(\"etape\" & tableau_Calculs[[#This Row],[noEtape]]),N$9,VLOOKUP(tableau_Calculs[[#This Row],[noEtape]]+200,tableau_Variables[],3,FALSE)),\"\")","v":""},{"$f":"IFERROR(IF(tableau_Calculs[[#This Row],[actif]],_xlfn.XLOOKUP(1,(data_ModesTransport[Mode de transport]=tableau_Calculs[[#This Row],[modeTransport]])*(data_ModesTransport[Distance max (km)]>tableau_Calculs[[#This Row],[distance(km)]]),data_ModesTransport[Émissions]),\"\"),0)","v":""},{"$f":"IFERROR(IF(tableau_Calculs[[#This Row],[actif]],_xlfn.XLOOKUP(1,(data_ModesTransport[Mode de transport]=tableau_Calculs[[#This Row],[modeTransport]])*(data_ModesTransport[Distance max (km)]>tableau_Calculs[[#This Row],[distance(km)]]),data_ModesTransport[Ajout distance (km)]),\"\"),0)","v":""},{"$f":"IF(tableau_Calculs[[#This Row],[actif]],IFERROR(INDEX(tableau_Produits[],1,6)*(tableau_Calculs[[#This Row],[distance(km)]]+tableau_Calculs[[#This Row],[ajoutDist(km)]])*tableau_Calculs[[#This Row],[facteurEmission]],0)/1000,\"\")","v":""},{"$f":"IFERROR(IF(tableau_Calculs[[#This Row],[actif]],INDEX(tableau_Produits[],1,7)*tableau_Calculs[[#This Row],[emissionsLivr(kgco2eq)]],\"\"),0)","v":""},{"$f":"AND(tableau_Calculs[[#This Row],[actif]],LEFT(tableau_Calculs[[#This Row],[retourVehicule]],3)=\"Oui\")","v":false},{"$f":"IFERROR(IF(tableau_Calculs[[#This Row],[actif]],_xlfn.XLOOKUP(1,(data_ModesTransport[Mode de transport]=tableau_Calculs[[#This Row],[modeTransport]])*(data_ModesTransport[Distance max (km)]>tableau_Calculs[[#This Row],[distance(km)]]),data_ModesTransport[Facteur retour à vide]),\"\"),0)","v":""},{"$f":"IF(tableau_Calculs[[#This Row],[actif]],IFERROR((tableau_Calculs[[#This Row],[distance(km)]]+tableau_Calculs[[#This Row],[ajoutDist(km)]])*tableau_Calculs[[#This Row],[facteurRaV]]*tableau_Calculs[[#This Row],[actifRaV]],0),\"\")","v":""},{"$f":"IFERROR(IF(tableau_Calculs[[#This Row],[actif]],INDEX(tableau_Produits[],1,7)*tableau_Calculs[[#This Row],[emissionsLivrRaV(kgco2eq)]],\"\"),0)","v":""}]
[null,24,"Ligne info approvisionnement",{"$f":"ROW(INDEX(zone_InfoApprovisionnement,1,1))","v":16},null,10,{"$f":"tableau_Calculs[[#This Row],[noEtape]]<=VLOOKUP(21,tableau_Variables[],3,FALSE)","v":false},{"$f":"VLOOKUP(tableau_Calculs[[#This Row],[noEtape]],tableau_Variables[],3,FALSE)","v":66},{"$f":"IF(tableau_Calculs[[#This Row],[actif]],COUNTBLANK(INDEX(INDIRECT(\"etape\"&tableau_Calculs[[#This Row],[noEtape]]),,VLOOKUP(tableau_Calculs[[#This Row],[noEtape]]+200,tableau_Variables[],3,FALSE)))=0,\"\")","v":""},{"$f":"IF(tableau_Calculs[[#This Row],[actif]],INDIRECT(ADDRESS(tableau_Calculs[[#This Row],[ligneDebut]]+J$9,VLOOKUP(28,tableau_Variables[],3,FALSE),,,\"Calculateur\")),\"\")","v":""},{"$f":"IF(tableau_Calculs[[#This Row],[actif]],IF(tableau_Calculs[[#This Row],[noEtape]]=VLOOKUP(21,tableau_Variables[],3),INDIRECT(ADDRESS(VLOOKUP(22,tableau_Variables[],3),VLOOKUP(28,tableau_Variables[],3,FALSE),,,\"Calculateur\")),INDIRECT(ADDRESS(VLOOKUP(tableau_Calculs[[#This Row],[noEtape]]+1,tableau_Variables[],3)+K$9,VLOOKUP(28,tableau_Variables[],3,FALSE),,,\"Calculateur\"))),\"\")","v":""},{"$f":"IF(tableau_Calculs[[#This Row],[actif]],INDEX(INDIRECT(\"etape\" & tableau_Calculs[[#This Row],[noEtape]]),L$9,VLOOKUP(tableau_Calculs[[#This Row],[noEtape]]+200,tableau_Variables[],3,FALSE)),\"\")","v":""},{"$f":"IF(tableau_Calculs[[#This Row],[actif]],INDEX(INDIRECT(\"etape\" & tableau_Calculs[[#This Row],[noEtape]]),M$9,VLOOKUP(tableau_Calculs[[#This Row],[noEtape]]+200,tableau_Variables[],3,FALSE)),\"\")","v":""},{"$f":"IF(tableau_Calculs[[#This Row],[actif]],INDEX(INDIRECT(\"etape\" & tableau_Calculs[[#This Row],[noEtape]]),N$9,VLOOKUP(tableau_Calculs[[#This Row],[noEtape]]+200,tableau_Variables[],3,FALSE)),\"\")","v":""},{"$f":"IFERROR(IF(tableau_Calculs[[#This Row],[actif]],_xlfn.XLOOKUP(1,(data_ModesTransport[Mode de transport]=tableau_Calculs[[#This Row],[modeTransport]])*(data_ModesTransport[Distance max (km)]>tableau_Calculs[[#This Row],[distance(km)]]),data_ModesTransport[Émissions]),\"\"),0)","v":""},{"$f":"IFERROR(IF(tableau_Calculs[[#This Row],[actif]],_xlfn.XLOOKUP(1,(data_ModesTransport[Mode de transport]=tableau_Calculs[[#This Row],[modeTransport]])*(data_ModesTransport[Distance max (km)]>tableau_Calculs[[#This Row],[distance(km)]]),data_ModesTransport[Ajout distance (km)]),\"\"),0)","v":""},{"$f":"IF(tableau_Calculs[[#This Row],[actif]],IFERROR(INDEX(tableau_Produits[],1,6)*(tableau_Calculs[[#This Row],[distance(km)]]+tableau_Calculs[[#This Row],[ajoutDist(km)]])*tableau_Calculs[[#This Row],[facteurEmission]],0)/1000,\"\")","v":""},{"$f":"IFERROR(IF(tableau_Calculs[[#This Row],[actif]],INDEX(tableau_Produits[],1,7)*tableau_Calculs[[#This Row],[emissionsLivr(kgco2eq)]],\"\"),0)","v":""},{"$f":"AND(tableau_Calculs[[#This Row],[actif]],LEFT(tableau_Calculs[[#This Row],[retourVehicule]],3)=\"Oui\")","v":false},{"$f":"IFERROR(IF(tableau_Calculs[[#This Row],[actif]],_xlfn.XLOOKUP(1,(data_ModesTransport[Mode de transport]=tableau_Calculs[[#This Row],[modeTransport]])*(data_ModesTransport[Distance max (km)]>tableau_Calculs[[#This Row],[distance(km)]]),data_ModesTransport[Facteur retour à vide]),\"\"),0)","v":""},{"$f":"IF(tableau_Calculs[[#This Row],[actif]],IFERROR((tableau_Calculs[[#This Row],[distance(km)]]+tableau_Calculs[[#This Row],[ajoutDist(km)]])*tableau_Calculs[[#This Row],[facteurRaV]]*tableau_Calculs[[#This Row],[actifRaV]],0),\"\")","v":""},{"$f":"IFERROR(IF(tableau_Calculs[[#This Row],[actif]],INDEX(tableau_Produits[],1,7)*tableau_Calculs[[#This Row],[emissionsLivrRaV(kgco2eq)]],\"\"),0)","v":""}]
[null,25,"Ligne étapes approvisionnement",{"$f":"ROW(INDEX(zone_EtapesApprovisionnement,1,1))","v":27}]
[null,26,"Colonnes info entreprise/produit",{"$f":"COLUMNS(zone_InfoProduit)","v":5},null,"totDistance","totEmissionsLivr","totEmissionsAn","toutRempli","totEmissionsAnRaV"]
[null,27,"Colonnes info approvisionnement",{"$f":"COLUMNS(zone_InfoApprovisionnement)","v":5},null,{"$f":"SUM(tableau_Calculs[distance(km)])+SUM(tableau_Calculs[ajoutDist(km)])","v":0},{"$f":"SUM(tableau_Calculs[emissionsLivr(kgco2eq)])","v":0},{"$f":"SUM(tableau_Calculs[emissionsAn(kgco2eq)])","v":0},{"$f":"AND(tableau_Calculs[toutRempli],tableau_Produits[toutRempli])","v":false},{"$f":"SUM(tableau_Calculs[emissionsAnRaV(kgco2eq)])","v":0}]
[null,28,"Colonne début endroit",4]
[null,29,"ligneDepart",{"$f":"VLOOKUP(1,tableau_Variables[],3,FALSE)-1","v":29}]
[null,30,"Lignes info entreprise/produit",{"$f":"ROWS(zone_InfoProduit)","v":6}]
[null,31,"Lignes info approvisionnement",{"$f":"ROWS(zone_InfoApprovisionnement)","v":8}]
[null,101,{"$f":"\"Hauteur de la plage etape\" &tableau_Variables[[#This Row],[ID]]-100","v":"Hauteur de la plage etape1"},{"$f":"ROWS((INDIRECT(\"etape\" & tableau_Variables[[#This Row],[ID]]-100)))","v":3}]
[null,102,{"$f":"\"Hauteur de la plage etape\" &tableau_Variables[[#This Row],[ID]]-100","v":"Hauteur de la plage etape2"},{"$f":"ROWS((INDIRECT(\"etape\" & tableau_Variables[[#This Row],[ID]]-100)))","v":3}]
[null,103,{"$f":"\"Hauteur de la plage etape\" &tableau_Variables[[#This Row],[ID]]-100","v":"Hauteur de la plage etape3"},{"$f":"ROWS((INDIRECT(\"etape\" & tableau_Variables[[#This Row],[ID]]-100)))","v":3}]
[null,104,{"$f":"\"Hauteur de la plage etape\" &tableau_Variables[[#This Row],[ID]]-100","v":"Hauteur de la plage etape4"},{"$f":"ROWS((INDIRECT(\"etape\" & tableau_Variables[[#This Row],[ID]]-100)))","v":3}]
[null,105,{"$f":"\"Hauteur de la plage etape\" &tableau_Variables[[#This Row],[ID]]-100","v":"Hauteur de la plage etape5"},{"$f":"ROWS((INDIRECT(\"etape\" & tableau_Variables[[#This Row],[ID]]-100)))","v":3}]
[null,106,{"$f":"\"Hauteur de la plage etape\" &tableau_Variables[[#This Row],[ID]]-100","v":"Hauteur de la plage etape6"},{"$f":"ROWS((INDIRECT(\"etape\" & tableau_Variables[[#This Row],[ID]]-100)))","v":3}]
[null,107,{"$f":"\"Hauteur de la plage etape\" &tableau_Variables[[#This Row],[ID]]-100","v":"Hauteur de la plage etape7"},{"$f":"ROWS((INDIRECT(\"etape\" & tableau_Variables[[#This Row],[ID]]-100)))","v":3}]
[null,108,{"$f":"\"Hauteur de la plage etape\" &tableau_Variables[[#This Row],[ID]]-100","v":"Hauteur de la plage etape8"},{"$f":"ROWS((INDIRECT(\"etape\" & tableau_Variables[[#This Row],[ID]]-100)))","v":3}]
[null,109,{"$f":"\"Hauteur de la plage etape\" &tableau_Variables[[#This Row],[ID]]-100","v":"Hauteur de la plage etape9"},{"$f":"ROWS((INDIRECT(\"etape\" & tableau_Variables[[#This Row],[ID]]-100)))","v":3}]
[null,110,{"$f":"\"Hauteur de la plage etape\" &tableau_Variables[[#This Row],[ID]]-100","v":"Hauteur de la plage etape10"},{"$f":"ROWS((INDIRECT(\"etape\" & tableau_Variables[[#This Row],[ID]]-100)))","v":3}]
[null,201,{"$f":"\"Largeur de la plage etape\" &tableau_Variables[[#This Row],[ID]]-200","v":"Largeur de la plage etape1"},{"$f":"COLUMNS((INDIRECT(\"etape\" & tableau_Variables[[#This Row],[ID]]-200)))","v":6}]
[null,202,{"$f":"\"Largeur de la plage etape\" &tableau_Variables[[#This Row],[ID]]-200","v":"Largeur de la plage etape2"},{"$f":"COLUMNS((INDIRECT(\"etape\" & tableau_Variables[[#This Row],[ID]]-200)))","v":6}]
[null,203,{"$f":"\"Largeur de la plage etape\" &tableau_Variables[[#This Row],[ID]]-200","v":"Largeur de la plage etape3"},{"$f":"COLUMNS((INDIRECT(\"etape\" & tableau_Variables[[#This Row],[ID]]-200)))","v":6}]
[null,204,{"$f":"\"Largeur de la plage etape\" &tableau_Variables[[#This Row],[ID]]-200","v":"Largeur de la plage etape4"},{"$f":"COLUMNS((INDIRECT(\"etape\" & tableau_Variables[[#This Row],[ID]]-200)))","v":6}]
[null,205,{"$f":"\"Largeur de la plage etape\" &tableau_Variables[[#This Row],[ID]]-200","v":"Largeur de la plage etape5"},{"$f":"COLUMNS((INDIRECT(\"etape\" & tableau_Variables[[#This Row],[ID]]-200)))","v":6}]
[null,206,{"$f":"\"Largeur de la plage etape\" &tableau_Variables[[#This Row],[ID]]-200","v":"Largeur de la plage etape6"},{"$f":"COLUMNS((INDIRECT(\"etape\" & tableau_Variables[[#This Row],[ID]]-200)))","v":6}]
[null,207,{"$f":"\"Largeur de la plage etape\" &tableau_Variables[[#This Row],[ID]]-200","v":"Largeur de la plage etape7"},{"$f":"COLUMNS((INDIRECT(\"etape\" & tableau_Variables[[#This Row],[ID]]-200)))","v":6}]
[null,208,{"$f":"\"Largeur de la plage etape\" &tableau_Variables[[#This Row],[ID]]-200","v":"Largeur de la plage etape8"},{"$f":"COLUMNS((INDIRECT(\"etape\" & tableau_Variables[[#This Row],[ID]]-200)))","v":6}]
[null,209,{"$f":"\"Largeur de la plage etape\" &tableau_Variables[[#This Row],[ID]]-200","v":"Largeur de la plage etape9"},{"$f":"COLUMNS((INDIRECT(\"etape\" & tableau_Variables[[#This Row],[ID]]-200)))","v":6}]
[null,210,{"$f":"\"Largeur de la plage etape\" &tableau_Variables[[#This Row],[ID]]-200","v":"Largeur de la plage etape10"},{"$f":"COLUMNS((INDIRECT(\"etape\" & tableau_Variables[[#This Row],[ID]]-200)))","v":6}]
[null,1001,"nbEtapesSauvIntl",0]
[null,1002,"nbEtapesSauvLoc",0]
[null,1011,"ligneResultIntl",{"$f":"ROW(pied_zone_resultIntl)","v":7}]
[null,1012,"ligneResultLocl",{"$f":"ROW(pied_zone_resultLoc)","v":13}]
[null,1013,"ligneResultIntlRaV",{"$f":"ROW(pied_zone_resultIntlRaV)","v":8}]
[null,1014,"ligneResultLocRaV",{"$f":"ROW(pied_zone_resultLocRaV)","v":14}]
[null,1021,"ligneFinEnteteResultIntl",{"$f":"ROW(INDEX(entete_zone_resultIntl,1,1))+ROWS(entete_zone_resultIntl)-1","v":6}]
[null,1022,"ligneFinEnteteResultLoc",{"$f":"ROW(INDEX(entete_zone_resultLoc,1,1))+ROWS(entete_zone_resultLoc)-1","v":12}]
[null,1031,"colonneResultSomme",{"$f":"COLUMN(INDEX(entete_zone_resultIntl,1,1))+COLUMNS(entete_zone_resultLoc)-3","v":11}]
[null,1101,"ligneDebutGabarit",{"$f":"ROW(INDEX(gabarit_resultats,1,1))","v":6}]
[null,1102,"ligneDebutGabaritCopie",{"$f":"ROW(INDEX(gabarit_resultats_copie,1,1))","v":18}]
[null,1111,"nomAppro",{"$f":"COLUMN(INDEX(entete_gabarit_resultats,1,MATCH(tableau_Variables[[#This Row],[Variable]],entete_gabarit_resultats,0)))-COLUMN(INDEX(entete_gabarit_resultats,1,1))+1","v":1}]
[null,1112,"qteAnnuelle",{"$f":"COLUMN(INDEX(entete_gabarit_resultats,1,MATCH(tableau_Variables[[#This Row],[Variable]],entete_gabarit_resultats,0)))-COLUMN(INDEX(entete_gabarit_resultats,1,1))+1","v":2}]
[null,1113,"nbExp",{"$f":"COLUMN(INDEX(entete_gabarit_resultats,1,MATCH(tableau_Variables[[#This Row],[Variable]],entete_gabarit_resultats,0)))-COLUMN(INDEX(entete_gabarit_resultats,1,1))+1","v":3}]
[null,1114,"pointA",{"$f":"COLUMN(INDEX(entete_gabarit_resultats,1,MATCH(tableau_Variables[[#This Row],[Variable]],entete_gabarit_resultats,0)))-COLUMN(INDEX(entete_gabarit_resultats,1,1))+1","v":5}]
[null,1115,"pointB",{"$f":"COLUMN(INDEX(entete_gabarit_resultats,1,MATCH(tableau_Variables[[#This Row],[Variable]],entete_gabarit_resultats,0)))-COLUMN(INDEX(entete_gabarit_resultats,1,1))+1","v":6}]
[null,1116,"dist",{"$f":"COLUMN(INDEX(entete_gabarit_resultats,1,MATCH(tableau_Variables[[#This Row],[Variable]],entete_gabarit_resultats,0)))-COLUMN(INDEX(entete_gabarit_resultats,1,1))+1","v":7}]
[null,1117,"mode",{"$f":"COLUMN(INDEX(entete_gabarit_resultats,1,MATCH(tableau_Variables[[#This Row],[Variable]],entete_gabarit_resultats,0)))-COLUMN(INDEX(entete_gabarit_resultats,1,1))+1","v":8}]
[null,1118,"emissionsEtape",{"$f":"COLUMN(INDEX(entete_gabarit_resultats,1,MATCH(tableau_Variables[[#This Row],[Variable]],entete_gabarit_resultats,0)))-COLUMN(INDEX(entete_gabarit_resultats,1,1))+1","v":9}]
[null,1119,"emissionsApproLivr",{"$f":"COLUMN(INDEX(entete_gabarit_resultats,1,MATCH(tableau_Variables[[#This Row],[Variable]],entete_gabarit_resultats,0)))-COLUMN(INDEX(entete_gabarit_resultats,1,1))+1","v":10}]
[null,1120,"emissionsApproAn",{"$f":"COLUMN(INDEX(entete_gabarit_resultats,1,MATCH(tableau_Variables[[#This Row],[Variable]],entete_gabarit_resultats,0)))-COLUMN(INDEX(entete_gabarit_resultats,1,1))+1","v":11}]

{"sheet":"_donnees","index":5,"n_rows":16,"n_cols":25,"rows_kept":16,"cut":false,"hidden":true,"merged":[]}
[null,null,null,null,"Source potentielle",null,null,null,null,null,null,null,null,"Source 1 (Aérien)","Source 2 (Aérien)"]
["Réponse générale",null,"Type approvisionnement",null,"Catégories de produits",null,"Provinces du Canada",null,"Modes de transport","Catégorie","Calculateur de distances","Dans tableau de données ?",null,"Mode de transport","Distance min (km)","Distance max (km)","Ajout distance (km)","Aérien - Kg de kérosène Jet A ou A1 / tonne-km","Aérien - Facteur d'émission pour kérosène Jet A (kg CO2eq/Kg de combustible)","Autres - Facteurs d'émissions","Émissions","Unitées d'émissions","kg CO2eq/L combustible","L combustibles/km","Facteur retour à vide"]
["Oui, toujours",null,"Local",null,"Agroalimentaire",null,"Alberta",null,"Aérien (Avec passagers)","Aérien","https://www.distance.to/ ",{"$f":"COUNTIF(data_ModesTransport[Mode de transport],I3)>0","v":true},null,"Aérien (Avec passagers)",0,1000,95,0.61,3.18,1000,{"$f":"data_ModesTransport[[#This Row],[Aérien - Kg de kérosène Jet A ou A1 / tonne-km]]*data_ModesTransport[[#This Row],[Aérien - Facteur d''émission pour kérosène Jet A (kg CO2eq/Kg de combustible)]]*data_ModesTransport[[#This Row],[Autres - Facteurs d''émissions]]","v":1939.8},"g CO2e/tonne-km",{"$f":"data_ModesTransport[[#This Row],[Aérien - Facteur d''émission pour kérosène Jet A (kg CO2eq/Kg de combustible)]]*0.8","v":2.5440000000000005},1,{"$f":"data_ModesTransport[[#This Row],[kg CO2eq/L combustible]]*data_ModesTransport[[#This Row],[L combustibles/km]]","v":2.5440000000000005}]
["Oui, parfois",null,"International",null,"Automobile",null,"Colombie-Britannique",null,"Aérien (Cargo seul)","Aérien","https://www.distance.to/ ",{"$f":"COUNTIF(data_ModesTransport[Mode de transport],I4)>0","v":true},null,"Aérien (Avec passagers)",1000,4000,95,0.52300000000000002,3.18,1000,{"$f":"data_ModesTransport[[#This Row],[Aérien - Kg de kérosène Jet A ou A1 / tonne-km]]*data_ModesTransport[[#This Row],[Aérien - Facteur d''émission pour kérosène Jet A (kg CO2eq/Kg de combustible)]]*data_ModesTransport[[#This Row],[Autres - Facteurs d''émissions]]","v":1663.14},"g CO2e/tonne-km",{"$f":"data_ModesTransport[[#This Row],[Aérien - Facteur d''émission pour kérosène Jet A (kg CO2eq/Kg de combustible)]]*0.8","v":2.5440000000000005},1,{"$f":"data_ModesTransport[[#This Row],[kg CO2eq/L combustible]]*data_ModesTransport[[#This Row],[L combustibles/km]]","v":2.5440000000000005}]
["Non",null,null,null,"Bois",null,"Île-du-Prince-Édouard",null,"Ferroviaire","Ferroviaire","https://www.google.com/maps",{"$f":"COUNTIF(data_ModesTransport[Mode de transport],I5)>0","v":true},null,"Aérien (Avec passagers)",4000,7000,95,0.35,3.18,1000,{"$f":"data_ModesTransport[[#This Row],[Aérien - Kg de kérosène Jet A ou A1 / tonne-km]]*data_ModesTransport[[#This Row],[Aérien - Facteur d''émission pour kérosène Jet A (kg CO2eq/Kg de combustible)]]*data_ModesTransport[[#This Row],[Autres - Facteurs d''émissions]]","v":1113},"g CO2e/tonne-km",{"$f":"data_ModesTransport[[#This Row],[Aérien - Facteur d''émission pour kérosène Jet A (kg CO2eq/Kg de combustible)]]*0.8","v":2.5440000000000005},1,{"$f":"data_ModesTransport[[#This Row],[kg CO2eq/L combustible]]*data_ModesTransport[[#This Row],[L combustibles/km]]","v":2.5440000000000005}]
["Information inconnue",null,null,null,"Chimie",null,"Manitoba",null,"Maritime (Conteneurs)","Maritime","https://www.searates.com/services/distances-time/",{"$f":"COUNTIF(data_ModesTransport[Mode de transport],I6)>0","v":true},null,"Aérien (Avec passagers)",7000,"inf",95,0.30599999999999999,3.18,1000,{"$f":"data_ModesTransport[[#This Row],[Aérien - Kg de kérosène Jet A ou A1 / tonne-km]]*data_ModesTransport[[#This Row],[Aérien - Facteur d''émission pour kérosène Jet A (kg CO2eq/Kg de combustible)]]*data_ModesTransport[[#This Row],[Autres - Facteurs d''émissions]]","v":973.08},"g CO2e/tonne-km",{"$f":"data_ModesTransport[[#This Row],[Aérien - Facteur d''émission pour kérosène Jet A (kg CO2eq/Kg de combustible)]]*0.8","v":2.5440000000000005},1,{"$f":"data_ModesTransport[[#This Row],[kg CO2eq/L combustible]]*data_ModesTransport[[#This Row],[L combustibles/km]]","v":2.5440000000000005}]
[null,null,null,null,"Construction",null,"Nouveau-Brunswick",null,"Maritime (Fluvial)","Maritime","https://www.searates.com/services/distances-time/",{"$f":"COUNTIF(data_ModesTransport[Mode de transport],I7)>0","v":true},null,"Aérien (Cargo seul)",0,1000,95,0.69099999999999995,3.18,1000,{"$f":"data_ModesTransport[[#This Row],[Aérien - Kg de kérosène Jet A ou A1 / tonne-km]]*data_ModesTransport[[#This Row],[Aérien - Facteur d''émission pour kérosène Jet A (kg CO2eq/Kg de combustible)]]*data_ModesTransport[[#This Row],[Autres - Facteurs d''émissions]]","v":2197.38},"g CO2e/tonne-km",{"$f":"data_ModesTransport[[#This Row],[Aérien - Facteur d''émission pour kérosène Jet A (kg CO2eq/Kg de combustible)]]*0.8","v":2.5440000000000005},1,{"$f":"data_ModesTransport[[#This Row],[kg CO2eq/L combustible]]*data_ModesTransport[[#This Row],[L combustibles/km]]","v":2.5440000000000005}]
[null,null,null,null,"Distribution",null,"Nouvelle-Écosse",null,"Maritime (Navire-citerne)","Maritime","https://www.searates.com/services/distances-time/",{"$f":"COUNTIF(data_ModesTransport[Mode de transport],I8)>0","v":true},null,"Aérien (Cargo seul)",1000,4000,95,0.5,3.18,1000,{"$f":"data_ModesTransport[[#This Row],[Aérien - Kg de kérosène Jet A ou A1 / tonne-km]]*data_ModesTransport[[#This Row],[Aérien - Facteur d''émission pour kérosène Jet A (kg CO2eq/Kg de combustible)]]*data_ModesTransport[[#This Row],[Autres - Facteurs d''émissions]]","v":1590},"g CO2e/tonne-km",{"$f":"data_ModesTransport[[#This Row],[Aérien - Facteur d''émission pour kérosène Jet A (kg CO2eq/Kg de combustible)]]*0.8","v":2.5440000000000005},1,{"$f":"data_ModesTransport[[#This Row],[kg CO2eq/L combustible]]*data_ModesTransport[[#This Row],[L combustibles/km]]","v":2.5440000000000005}]
[null,null,null,null,"Énergie",null,"Nunavut",null,"Routier","Routier","https://www.google.com/maps",{"$f":"COUNTIF(data_ModesTransport[Mode de transport],I9)>0","v":true},null,"Aérien (Cargo seul)",4000,7000,95,0.21099999999999999,3.18,1000,{"$f":"data_ModesTransport[[#This Row],[Aérien - Kg de kérosène Jet A ou A1 / tonne-km]]*data_ModesTransport[[#This Row],[Aérien - Facteur d''émission pour kérosène Jet A (kg CO2eq/Kg de combustible)]]*data_ModesTransport[[#This Row],[Autres - Facteurs d''émissions]]","v":670.98},"g CO2e/tonne-km",{"$f":"data_ModesTransport[[#This Row],[Aérien - Facteur d''émission pour kérosène Jet A (kg CO2eq/Kg de combustible)]]*0.8","v":2.5440000000000005},1,{"$f":"data_ModesTransport[[#This Row],[kg CO2eq/L combustible]]*data_ModesTransport[[#This Row],[L combustibles/km]]","v":2.5440000000000005}]
[null,null,null,null,"Métallurgie",null,"Ontario",null,null,null,null,null,null,"Aérien (Cargo seul)",7000,"inf",95,0.17199999999999999,3.18,1000,{"$f":"data_ModesTransport[[#This Row],[Aérien - Kg de kérosène Jet A ou A1 / tonne-km]]*data_ModesTransport[[#This Row],[Aérien - Facteur d''émission pour kérosène Jet A (kg CO2eq/Kg de combustible)]]*data_ModesTransport[[#This Row],[Autres - Facteurs d''émissions]]","v":546.96},"g CO2e/tonne-km",{"$f":"data_ModesTransport[[#This Row],[Aérien - Facteur d''émission pour kérosène Jet A (kg CO2eq/Kg de combustible)]]*0.8","v":2.5440000000000005},1,{"$f":"data_ModesTransport[[#This Row],[kg CO2eq/L combustible]]*data_ModesTransport[[#This Row],[L combustibles/km]]","v":2.5440000000000005}]
[null,null,null,null,"Papier",null,"Québec",null,null,null,null,null,null,"Ferroviaire",0,"inf",0,1,1,22,{"$f":"data_ModesTransport[[#This Row],[Aérien - Kg de kérosène Jet A ou A1 / tonne-km]]*data_ModesTransport[[#This Row],[Aérien - Facteur d''émission pour kérosène Jet A (kg CO2eq/Kg de combustible)]]*data_ModesTransport[[#This Row],[Autres - Facteurs d''émissions]]","v":22},"g CO2e/tonne-km",1,1,{"$f":"data_ModesTransport[[#This Row],[kg CO2eq/L combustible]]*data_ModesTransport[[#This Row],[L combustibles/km]]","v":1}]
[null,null,null,null,"Pharmacie",null,"Saskatchewan",null,null,null,null,null,null,"Maritime (Conteneurs)",0,500,0,1,1,16,{"$f":"data_ModesTransport[[#This Row],[Aérien - Kg de kérosène Jet A ou A1 / tonne-km]]*data_ModesTransport[[#This Row],[Aérien - Facteur d''émission pour kérosène Jet A (kg CO2eq/Kg de combustible)]]*data_ModesTransport[[#This Row],[Autres - Facteurs d''émissions]]","v":16},"g CO2e/tonne-km",1,1,{"$f":"data_ModesTransport[[#This Row],[kg CO2eq/L combustible]]*data_ModesTransport[[#This Row],[L combustibles/km]]","v":1}]
[null,null,null,null,"Textile - Habillement",null,"Terre-Neuve-et-Labrador",null,null,null,null,null,null,"Maritime (Conteneurs)",500,"inf",0,1,1,8,{"$f":"data_ModesTransport[[#This Row],[Aérien - Kg de kérosène Jet A ou A1 / tonne-km]]*data_ModesTransport[[#This Row],[Aérien - Facteur d''émission pour kérosène Jet A (kg CO2eq/Kg de combustible)]]*data_ModesTransport[[#This Row],[Autres - Facteurs d''émissions]]","v":8},"g CO2e/tonne-km",1,1,{"$f":"data_ModesTransport[[#This Row],[kg CO2eq/L combustible]]*data_ModesTransport[[#This Row],[L combustibles/km]]","v":1}]
[null,null,null,null,"TIC",null,"Territoires du Nord-Ouest",null,null,null,null,null,null,"Maritime (Fluvial)",0,"inf",0,1,1,31,{"$f":"data_ModesTransport[[#This Row],[Aérien - Kg de kérosène Jet A ou A1 / tonne-km]]*data_ModesTransport[[#This Row],[Aérien - Facteur d''émission pour kérosène Jet A (kg CO2eq/Kg de combustible)]]*data_ModesTransport[[#This Row],[Autres - Facteurs d''émissions]]","v":31},"g CO2e/tonne-km",1,1,{"$f":"data_ModesTransport[[#This Row],[kg CO2eq/L combustible]]*data_ModesTransport[[#This Row],[L combustibles/km]]","v":1}]
[null,null,null,null,"Transports",null,"Yukon",null,null,null,null,null,null,"Maritime (Navire-citerne)",0,"inf",0,1,1,5,{"$f":"data_ModesTransport[[#This Row],[Aérien - Kg de kérosène Jet A ou A1 / tonne-km]]*data_ModesTransport[[#This Row],[Aérien - Facteur d''émission pour kérosène Jet A (kg CO2eq/Kg de combustible)]]*data_ModesTransport[[#This Row],[Autres - Facteurs d''émissions]]","v":5},"g CO2e/tonne-km",1,1,{"$f":"data_ModesTransport[[#This Row],[kg CO2eq/L combustible]]*data_ModesTransport[[#This Row],[L combustibles/km]]","v":1}]
[null,null,null,null,null,null,null,null,null,null,null,null,null,"Routier",0,"inf",0,1,1,62,{"$f":"data_ModesTransport[[#This Row],[Aérien - Kg de kérosène Jet A ou A1 / tonne-km]]*data_ModesTransport[[#This Row],[Aérien - Facteur d''émission pour kérosène Jet A (kg CO2eq/Kg de combustible)]]*data_ModesTransport[[#This Row],[Autres - Facteurs d''émissions]]","v":62},"g CO2e/tonne-km",1,1,{"$f":"data_ModesTransport[[#This Row],[kg CO2eq/L combustible]]*data_ModesTransport[[#This Row],[L combustibles/km]]","v":1}]